Cogmind - Beta 16 @@@ ROGUE MODE // 2025.11.05 @ 04:10:38 // Winter2019/RPGLIKE Player: Rentaro Result: Escaped! Performance ------------- Evolutions (9) 4500 Regions Visited (31) 6200 Robots Destroyed (2823) 14115 Value Destroyed (159816) 159816 Prototype IDs (121) 2420 Alien Tech Used (1) 200 Bonus (153239) 153239 TOTAL SCORE: 340490 Bonus ------- Triggered High Security 4000 High Alert Combat Kills 104382 Destroyed Unchained 5000 Met Data Miner 300 Met Imprinter 300 Met Warlord at Base 500 MAIN.C Attacked Warlord 500 Warlord Defense Kills 28952 Hacked Protovariant 500 Met Warlord at Research 2000 Scanned by Researcher 500 Acquired SGEMP 2000 Destroyed MAIN.C Guards 500 Met Warlord at Command 2000 Win 3000 Friendly Fire -1195 Cogmind --------- Core Integrity 584/600 Matter 490/500 Energy 196/200 System Corruption 0% Temperature Cool (8) Movement Flying (21) Location To Epsilon Eridani Parts ------- > --- POWER (2) -------- Micro Fission Core Micro Fission Core > --- PROPULSION (4) --- Diametric Drive Improved Diametric Drive Improved Diametric Drive Improved Diametric Drive > --- UTILITY (11) ----- Structural Scanner Experimental Signal Interpreter Experimental Target Analyzer Experimental Core Analyzer Experimental Core Analyzer Experimental Core Analyzer Stasis Canceller Experimental Reaction Control System Experimental Phase Shifter Graphene Brace Advanced Corruption Screen > --- WEAPON (7) ------- Enhanced Autogun Enhanced Autogun Enhanced Autogun Enhanced Autogun Enhanced Autogun Enhanced Autogun Enhanced Autogun > --- INVENTORY (4) ---- Protomatter-70 Protomatter-70 Protomatter-66 Advanced Kinecellerator Peak State ------------ > --- POWER ------------ Micro Fission Core Micro Fission Core > --- PROPULSION ------- Diametric Drive Improved Diametric Drive Improved Diametric Drive Improved Diametric Drive > --- UTILITY ---------- Experimental Signal Interpreter Experimental Target Analyzer Experimental Core Analyzer Experimental Armor Integrity Analyzer Advanced Kinecellerator Experimental Reaction Control System Experimental Phase Shifter Graphene Brace Ghost Barrier Advanced Corruption Screen > --- WEAPON ----------- Improved Potential Cannon Enhanced Autogun Enhanced Autogun Enhanced Autogun Enhanced Autogun Plasma Lance > --- INVENTORY -------- Protomatter Stasis Canceller Enhanced Force Lance [Rating: 188] Favorites ----------- Power Micro Fission Core Engine Light Ion Engine Power Core Micro Fission Core Reactor Light Quantum Reactor Propulsion Cesium-ion Thruster Wheel Wheel Flight Unit Cesium-ion Thruster Utility Graphene Brace Device Graphene Brace Storage Experimental Energy Well Processor Experimental Target Analyzer Hackware Experimental Hacking Suite Protection Centrium Heavy Armor Plating Weapon Enhanced Autogun Energy Gun Hypervelocity EM Gauss Rifle Energy Cannon Cooled Plasma Cannon Ballistic Gun Enhanced Autogun Ballistic Cannon Gauss Cannon Launcher Grenade Launcher Special Weapon Advanced Remote Datajack Impact Weapon Powered Hammer Slashing Weapon Plasma Sword Piercing Weapon Enhanced Force Lance Build | -11 -10 -9 -8 -7 -7 -7 -7 -6 -6 -6 -6 -6 -6 -6 -5 -5 -5 -5 -5 -5 -5 -4 -4 -4 -4 -4 -3 -3 -2 -1 -1 ------- Run | Yrd Mat Mat Mat Fac Low Low Zio Pro Fac Was Fac Low Low Dat Pro Fac Was Fac Upp Upp War Pro Fac Was Fac Arm Res Tes Res Acc Com Slots Evolved 20 | 4 1 5 1 1 . . 1 1 . . 1 . . . . 1 . 1 . . 1 . . . . 1 . . . . 1 Power 1 | . . . . . . . . . . . . . . . . . . . . . 1 . . . . . . . . . . Propulsion 3 | 1 . 1 . . . . . . . . 1 . . . . . . . . . . . . . . . . . . . . Utility 10 | 1 . 2 1 1 . . 1 1 . . . . . . . 1 . 1 . . . . . . . . . . . . 1 Weapon 6 | 2 1 2 . . . . . . . . . . . . . . . . . . . . . . . 1 . . . . . Parts Attached 197 | 5 11 5 9 18 . . 8 . 1 1 21 . 1 . 1 16 1 12 1 . 15 3 12 . 3 15 9 16 4 4 5 Power 12 | 1 . . . . . . . . . . 2 . . . . . . . . . 4 . . . . 2 . . 1 1 1 Engine 2 | 1 . . . . . . . . . . . . . . . . . . . . . . . . . . . . 1 . . Core 5 | . . . . . . . . . . . 1 . . . . . . . . . 2 . . . . 2 . . . . . Reactor 5 | . . . . . . . . . . . 1 . . . . . . . . . 2 . . . . . . . . 1 1 Propulsion 27 | 2 2 2 3 . . . . . . . 1 . . . . 4 . 1 . . 4 . 3 . 2 . 3 . . . . Treads . | . . . . . . . . . . . . . . . . . . . . . . . . . . . . . . . . Leg . | . . . . . . . . . . . . . . . . . . . . . . . . . . . . . . . . Wheel 2 | 2 . . . . . . . . . . . . . . . . . . . . . . . . . . . . . . . Hover . | . . . . . . . . . . . . . . . . . . . . . . . . . . . . . . . . Flight 25 | . 2 2 3 . . . . . . . 1 . . . . 4 . 1 . . 4 . 3 . 2 . 3 . . . . Utility 100 | . 3 1 4 7 . . 8 . 1 1 15 . 1 . . 10 1 10 1 . 6 3 9 . 1 5 3 5 2 1 2 Device 62 | . 1 . 3 5 . . 2 . 1 1 11 . 1 . . 5 1 6 1 . 3 3 5 . 1 4 3 4 . 1 . Storage 2 | . . . . . . . . . . . 1 . . . . . . . . . . . . . . . . 1 . . . Processor 24 | . 2 1 1 1 . . 5 . . . 1 . . . . 1 . 3 . . 2 . 3 . . 1 . . 2 . 1 Hackware 11 | . . . . 1 . . 1 . . . 1 . . . . 4 . 1 . . 1 . 1 . . . . . . . 1 Protection 1 | . . . . . . . . . . . 1 . . . . . . . . . . . . . . . . . . . . Artifact . | . . . . . . . . . . . . . . . . . . . . . . . . . . . . . . . . Weapon 58 | 2 6 2 2 11 . . . . . . 3 . . . 1 2 . 1 . . 1 . . . . 8 3 11 1 2 2 Energy Gun 3 | . . . . . . . . . . . . . . . . . . . . . . . . . . 1 . 1 . 1 . Energy Cannon 8 | . . . . . . . . . . . 1 . . . . 1 . . . . . . . . . 2 . 4 . . . Ballistic Gun 28 | 2 5 2 2 10 . . . . . . 1 . . . . . . . . . . . . . . 3 1 1 1 . . Ballistic Cannon 3 | . . . . . . . . . . . . . . . . . . 1 . . . . . . . 1 . . . 1 . Launcher 4 | . 1 . . 1 . . . . . . . . . . . . . . . . . . . . . . . 1 . . 1 Special Weapon 6 | . . . . . . . . . . . . . . . . . . . . . 1 . . . . . 1 3 . . 1 Impact Weapon 1 | . . . . . . . . . . . . . . . . 1 . . . . . . . . . . . . . . . Slashing Weapon 1 | . . . . . . . . . . . . . . . . . . . . . . . . . . 1 . . . . . Piercing Weapon 4 | . . . . . . . . . . . 1 . . . 1 . . . . . . . . . . . 1 1 . . . Special Melee Weapon . | . . . . . . . . . . . . . . . . . . . . . . . . . . . . . . . . Unidentified Prototypes 58 | . . 1 . . . . 8 . . . 8 . 1 . 1 5 . 2 . . 8 1 . . . 9 1 13 . . . Parts Lost 1 | . . . . . . . . . . . . . . . . . . . . . 1 . . . . . . . . . . Power . | . . . . . . . . . . . . . . . . . . . . . . . . . . . . . . . . Propulsion 1 | . . . . . . . . . . . . . . . . . . . . . 1 . . . . . . . . . . Utility . | . . . . . . . . . . . . . . . . . . . . . . . . . . . . . . . . Weapon . | . . . . . . . . . . . . . . . . . . . . . . . . . . . . . . . . Highest Loss Streak 1 | . . . . . . . . . . . . . . . . . . . . . 1 . . . . . . . . . . To Critical Strikes . | . . . . . . . . . . . . . . . . . . . . . . . . . . . . . . . . Average Backups 1 | . . 1 . 1 1 . . 1 . . 1 2 2 2 2 2 2 1 2 2 2 2 2 1 1 2 1 2 1 1 1 Power . | . . . . . . . . . . . . . . . . . . . . . . . . . . . . . . . . Propulsion . | . . . . . . . . . . . . . . . . . . . . . . . . . . . . . . . . Utility 1 | . . . . . 1 . . 1 . . 1 2 2 2 2 2 2 1 1 1 1 2 2 1 1 2 1 1 1 1 1 Weapon . | . . 1 . . . . . . . . . . . . . . . . 1 1 . . . . . . . . . . . Tool/Special . | . . . . . . . . . . . . . . . . . . . . . . . . . . . . . . . . Unused Backups 14 | . . 1 . . . . . . . . 2 . . . . . . 6 . . 1 . . . 2 1 . . . 1 . Power . | . . . . . . . . . . . . . . . . . . . . . . . . . . . . . . . . Propulsion 2 | . . . . . . . . . . . 1 . . . . . . . . . . . . . 1 . . . . . . Utility 5 | . . 1 . . . . . . . . 1 . . . . . . 2 . . . . . . . 1 . . . . . Weapon 7 | . . . . . . . . . . . . . . . . . . 4 . . 1 . . . 1 . . . . 1 . Tool/Special . | . . . . . . . . . . . . . . . . . . . . . . . . . . . . . . . . Average Slot Usage (%) 97 | . 95 92 90 99 100 100 99 98 99 100 98 100 99 100 100 99 100 99 100 100 94 90 89 95 98 99 98 96 99 99 99 Engine 2 | . 11 9 6 6 6 6 5 5 5 5 2 . . . . . . . . . . . . . . . . . . . . Core 4 | . . . . . . . . . . . 2 5 5 5 5 5 5 4 4 4 6 9 9 9 9 8 8 8 8 7 7 Flight 17 | . 22 18 20 18 18 18 17 16 16 16 19 21 21 21 21 19 20 19 19 19 14 9 9 13 16 17 17 17 17 17 16 Device 15 | . 6 . 8 16 18 18 11 11 15 16 17 21 20 21 21 20 20 20 19 19 15 13 12 13 13 12 16 16 16 19 20 Processor 20 | . 13 25 18 16 18 18 27 28 27 27 22 21 21 21 21 19 15 14 19 19 21 22 22 22 22 21 21 21 21 22 23 Hackware 4 | . . . . 3 . . . . . . 1 . . . . 5 10 9 9 9 8 9 9 9 9 8 4 4 3 . . Ballistic Gun 30 | . 35 34 34 36 37 37 35 34 33 33 31 31 31 31 28 29 30 28 28 28 27 27 27 27 27 25 26 23 29 29 28 Peak Build Rating 188 | 5 12 17 38 57 55 55 76 68 77 77 92 88 98 88 90 110 103 115 116 115 155 151 157 155 156 164 170 188 172 170 176 Average Rating 108 | 3 9 13 26 52 55 55 66 68 75 76 81 88 87 88 88 98 101 108 115 115 133 150 154 155 153 158 160 165 165 162 165 On Entrance 97 | . 5 12 17 38 55 55 55 68 68 76 77 88 88 88 88 88 103 99 115 115 115 151 151 155 155 156 164 163 172 169 159 Avg Prop Armor Cover (%) 1 | . . . . . . . . . . . . . . . . . . . . . 1 . 1 . . . . . . . . Naked Turns . | . . . . . . . . . . . . . . . . . . . . . . . . . . . . . . . . Heaviest Build 64 | 6 9 9 16 27 27 27 27 26 27 27 35 32 32 32 32 33 34 39 33 33 36 33 33 33 33 43 43 45 42 64 64 Greatest Support 47 | 25 25 25 28 28 28 28 28 28 28 28 32 32 32 32 32 35 35 35 35 35 47 47 47 45 45 43 43 43 43 43 43 Greatest Overweight (x) 1 | . . . . . . . . . . . 1 . . . . 1 1 1 . . 1 . . . . . . 1 1 1 1 Average Overweight (x) . | . . . . . . . . . . . . . . . . . . . . . . . . . . . . . . . . Largest Inventory Capacity 4 | . 1 2 2 3 3 3 3 3 3 3 3 3 3 3 3 3 3 3 3 3 3 3 3 3 3 3 3 4 4 4 4 Average Capacity 2 | . . 1 2 2 3 3 3 3 3 3 3 3 3 3 3 3 3 3 3 3 3 3 3 3 3 3 3 3 4 4 4 Most Carried 4 | . 1 2 2 3 3 3 3 3 3 3 3 3 3 3 3 3 3 3 3 3 3 3 3 3 3 3 3 4 4 4 4 Average Carried 2 | . . 1 . 2 3 2 2 3 2 2 2 3 3 3 2 2 2 2 2 3 2 2 2 2 2 2 2 2 3 3 3 Final Capacity 4 | . 1 2 2 3 3 3 3 3 3 3 3 3 3 3 3 3 3 3 3 3 3 3 3 3 3 3 3 4 4 4 4 Final Carried 4 | . 1 2 2 3 3 3 3 3 2 3 3 3 3 3 3 3 3 2 3 3 3 3 2 3 3 3 3 4 4 4 4 Class Distribution -------------------- 47% | Hacker-Scout 31% | Wizard-Scout 10% | Scavenger-Scout 4% | Scavenger-Gunner Dominant Class ---------------- Gunner | -10/Materials Scavenger-Gunner | -9/Materials Scientist-Scout | -8/Materials Hacker-Scout | -7/Factory Hacker-Scout | -7/Lower Caves Hacker-Scout | -7/Lower Caves Hacker-Scout | -7/Zion Hacker-Scout | -6/Proximity Caves Hacker-Scout | -6/Factory Hacker-Scout | -6/Waste Hacker-Scout | -6/Factory Scavenger-Scout | -6/Lower Caves Scavenger-Scout | -6/Lower Caves Scavenger-Scout | -6/Data Miner Scavenger-Scout | -5/Proximity Caves Hacker-Scout | -5/Factory Wizard-Scout | -5/Waste Wizard-Scout | -5/Factory Wizard-Scout | -5/Upper Caves Wizard-Scout | -5/Upper Caves Wizard-Scout | -5/Warlord Wizard-Scout | -4/Proximity Caves Wizard-Scout | -4/Factory Wizard-Scout | -4/Waste Wizard-Scout | -4/Factory Wizard-Scout | -4/Armory Hacker-Scout | -3/Research Hacker-Scout | -3/Testing Hacker-Scout | -2/Research Hacker-Scout | -1/Access Hacker-Scout | -1/Command Resources | -11 -10 -9 -8 -7 -7 -7 -7 -6 -6 -6 -6 -6 -6 -6 -5 -5 -5 -5 -5 -5 -5 -4 -4 -4 -4 -4 -3 -3 -2 -1 -1 ----------- Run | Yrd Mat Mat Mat Fac Low Low Zio Pro Fac Was Fac Low Low Dat Pro Fac Was Fac Upp Upp War Pro Fac Was Fac Arm Res Tes Res Acc Com Matter Collected 104285 | 220 548 1435 1268 8756 456 168 230 936 342 116 10399 335 328 . 980 3714 72 7833 356 864 8146 458 2700 418 3904 6022 7166 5255 17948 6498 6414 Remotely 34724 | . . . . 4109 456 168 230 936 342 116 10399 335 288 . 980 3714 72 7833 356 864 3526 . . . . . . . . . . Salvage Created 154421 | . 555 1765 2638 9544 588 398 91 1254 308 434 10513 308 331 . 1322 6629 352 10576 714 1296 10966 457 3606 319 5943 9172 11795 8174 31406 11006 11961 Parts 8050 | . 50 154 163 573 35 16 2 72 21 2 559 9 28 . 64 293 16 569 16 53 544 23 218 26 364 477 625 403 1537 533 605 Haulers Intercepted 61 | . 2 6 6 8 . . . . . . 8 . . . . 7 . 10 . . . 1 . . 1 . 1 . 2 9 . Recyclers Shooed 14 | . . 3 . . . . . . . . 3 . . . . 2 . 2 . . . . 2 . 2 . . . . . . Parts Field Recycled . | . . . . . . . . . . . . . . . . . . . . . . . . . . . . . . . . Retrieved Matter . | . . . . . . . . . . . . . . . . . . . . . . . . . . . . . . . . Parts Self-Destructed 317 | . . . . . 35 16 2 74 . . . 6 28 . 64 . . . 16 53 . 23 . . . . . . . . . Prevented . | . . . . . . . . . . . . . . . . . . . . . . . . . . . . . . . . Parts Restored . | . . . . . . . . . . . . . . . . . . . . . . . . . . . . . . . . Kills | -11 -10 -9 -8 -7 -7 -7 -7 -6 -6 -6 -6 -6 -6 -6 -5 -5 -5 -5 -5 -5 -5 -4 -4 -4 -4 -4 -3 -3 -2 -1 -1 ------- Run | Yrd Mat Mat Mat Fac Low Low Zio Pro Fac Was Fac Low Low Dat Pro Fac Was Fac Upp Upp War Pro Fac Was Fac Arm Res Tes Res Acc Com Combat Hostiles Destroyed 2492 | . 13 42 54 159 17 7 1 27 5 . 149 6 10 . 30 80 3 153 6 22 238 7 66 6 104 158 170 142 473 144 200 Melee 1 | . . . . . . . . . . . . . . . . . . . . . . . . . . 1 . . . . . Guns 2476 | . 13 33 54 159 17 7 1 27 5 . 149 6 10 . 30 80 3 152 6 22 238 7 66 6 104 157 170 142 473 144 195 AOE 15 | . . 9 . . . . . . . . . . . . . . . 1 . . . . . . . . . . . . 5 Classes Destroyed 34 | . 8 4 3 3 . . . 2 . . 2 2 . . . 2 1 1 . . 2 . . . . . 1 1 1 . 1 Worker 72 | . 3 4 1 17 . . . . . . 23 . . . . 3 . 9 . . . . 3 . 2 . 3 . . 1 3 Builder 45 | . 1 5 1 11 . . . . 1 . 14 . . . . 2 . 2 . . . . 2 . . . 5 . . 1 . Tunneler 13 | . . 1 . 5 . . . . . . . . . . . . . 4 . . . . . . . . 2 . . 1 . Hauler 61 | . 2 6 6 8 . . . . . . 8 . . . . 7 . 10 . . . 1 . . 1 . 1 . 2 9 . Recycler 43 | . . 3 2 12 . . . . . . 7 . . . . 8 . 2 . . . . 4 . 3 . 1 . . 1 . Minesweeper 5 | . . . . . . . . 1 . . . . . . 2 . . . 1 . . 1 . . . . . . . . . Mechanic 57 | . 1 . 1 6 . . . . . . 5 . . . . . . 3 . . 2 . 2 . . . 3 6 26 . 2 Operator 20 | . 1 . . 4 . . . . . . 3 . . . . 2 . 2 . . . . . . 1 1 1 1 1 1 2 Drone 13 | . . . . . . . . . . . 5 . . . 2 . . . . . . . . . . . . . 1 . 5 Turret 53 | . . . . . . . . . . . . . . . . . . 53 . . . . . . . . . . . . . Watcher 104 | . 2 5 5 8 . . . . 3 . 8 . . . . 9 . 10 . . . . 5 . 9 6 10 3 9 8 4 Swarmer 286 | . 8 9 8 18 6 3 . 9 . . 9 1 8 . 12 10 . 24 2 1 18 . 18 . 15 13 16 . 33 26 19 Cutter 35 | . . . 2 6 . . . . . . . . . . . . . 3 . . . . . . 2 10 . . . 4 8 Saboteur 68 | . . . . . . . . . . . 2 . . . . 1 . 2 . . 6 . . . 1 16 4 10 13 2 11 Grunt 883 | . 5 22 29 74 9 3 . 7 . . 71 1 . . 12 28 . 58 3 6 98 5 27 . 49 39 61 68 111 48 49 Brawler 98 | . . . . 4 . . . 2 . . 3 . . . 1 1 . 3 . 3 26 . 4 . 1 6 9 10 10 4 11 Duelist 85 | . . 1 2 6 . 1 . 2 . . 5 . . . 1 1 . 5 . 5 12 . 1 . . 11 7 9 13 2 1 Protector 100 | . . . . 10 . . . . . . 7 . . . . 2 . 1 . 1 21 . . . . 6 13 9 21 4 5 Researcher 1 | . . . . . . . . . . . . . . . . . . . . . . . . . . . . 1 . . . Sentry 186 | . . 10 10 19 2 . . 2 . . 10 1 . . 2 11 . 12 1 2 . . 3 . 13 15 21 4 34 10 4 Demolisher 16 | . . . . . . . . . . . . . . . . . . . . . 2 . . . . 3 . . 11 . . Specialist 22 | . . . . . . . . . . . . . . . . 2 . . . . 5 . . . . 12 . . . . 3 Hunter 242 | . . . 2 12 . . 1 3 1 . 18 . . . . 11 . 19 . 3 10 2 2 . 6 6 16 11 68 20 31 Programmer 250 | . . . . 9 . . . 1 4 . 13 1 1 . . 10 . 19 . 1 11 . 10 . 14 14 14 17 67 13 31 Heavy 20 | . . . 1 1 . . . . . . 3 . . . . 1 . 4 . . . . 1 . 2 2 1 . . 3 1 Behemoth 22 | . . . . . . . . 1 . . 1 . 1 . . . . 1 . . 4 . . . 1 1 1 . 2 6 3 Compactor 9 | . . . . . . . . . . . . . . . . . 3 . . . . . . 6 . . . . . . . Armor Guard 4 | . . . . . . . . . . . . . . . . . . . . . . . . . . 4 . . . . . Combat Programmer 2 | . . . . . . . . . . . . . . . . . . . . . . . . . . . . . . . 2 Investigator 7 | . . . . . . . . . . . . . . . . . . . . . . . . . . . 1 3 1 1 1 Striker 71 | . . . . . . . . . . . . . . . . . . . . . 14 . . . . . 5 3 41 2 6 Executioner 64 | . . . . . . . . . . . . . . . . . . . . . 11 . . . . . 2 . 46 . 5 Alpha 7 3 | . . . . . . . . . . . . . . . . . . . . . . . . . . . . 1 . . 2 Thief 1 | . . . . . . . . . . . . 1 . . . . . . . . . . . . . . . . . . . Thug 2 | . . . . . . . . . . . . . . . . . . . . . . . . . . . . . . . 2 Savage 1 | . . . . . . . . . . . . . . . . . . . . . . . . . . . . . . . 1 Butcher 1 | . . . . . . . . . . . . . . . . . . . . . . . . . . . . . . . 1 Martyr 1 | . . . . . . . . . . . . . . . . 1 . . . . . . . . . . . . . . . Mutant 2 | . . . . . . . . . . . . 1 . . . . . . . . 1 . . . . . . . . . . Knight 1 | . . . . . . . . . . . . . . . . . . . . . . . . . . . . . . . 1 Troll 2 | . . . . . . . . . . . . . . . . . . . . . . . . . . . . . 2 . . Best Kill Streak 92 | . 5 8 14 27 14 4 1 15 4 . 26 4 4 . 20 15 3 50 5 9 31 6 10 6 14 91 82 54 92 32 58 Combat Bots Only 91 | . 3 6 11 26 14 4 1 10 1 . 25 4 4 . 18 14 3 22 5 9 31 5 8 6 14 91 67 50 88 30 53 Max Kills in Single Turn 6 | . 2 3 2 3 2 2 1 3 2 . 2 1 2 . 2 2 1 6 3 1 3 2 3 1 3 4 3 3 3 3 5 Gunslinging 3 | . 1 2 1 2 1 . . 1 . . 1 . 1 . 1 1 . 1 2 . 2 1 2 . 2 3 2 2 2 2 3 Exploded 3 | . . 2 . . . . . . . . . . . . . . . 1 . . . . . . . . . . . . 3 Melee 1 | . . . . . . . . . . . . . . . . . . . . . . . . . . 1 . . . . . Uniques/NPCs Destroyed 5 | . . . . . . . . . . . 2 . . . . 1 . 2 . . . . . . . . . . . . . 6S-H0T (-6/Factory) QV-33N (-6/Factory) CL-0N3 (-5/Factory) DW-4LL (-5/Factory) GL-D0S (-5/Factory) Combat | -11 -10 -9 -8 -7 -7 -7 -7 -6 -6 -6 -6 -6 -6 -6 -5 -5 -5 -5 -5 -5 -5 -4 -4 -4 -4 -4 -3 -3 -2 -1 -1 -------- Run | Yrd Mat Mat Mat Fac Low Low Zio Pro Fac Was Fac Low Low Dat Pro Fac Was Fac Upp Upp War Pro Fac Was Fac Arm Res Tes Res Acc Com Hostile Shots Fired 5927 | . 61 82 204 358 28 2 . 58 7 . 310 6 9 . 30 122 . 237 4 24 371 15 109 . 145 305 458 541 1278 417 746 Missed 4164 | . 22 39 65 172 14 . . 31 3 . 157 2 5 . 17 79 . 129 2 9 234 13 80 . 114 230 350 453 991 337 616 Hits 1763 | . 39 43 139 186 14 2 . 27 4 . 153 4 4 . 13 43 . 108 2 15 137 2 29 . 31 75 108 88 287 80 130 Melee 28 | . . . 2 1 . . . . . . . . . . . . . 1 . 2 . . . . . 5 1 . 6 1 9 Projectile 1735 | . 39 43 137 185 14 2 . 27 4 . 153 4 4 . 13 43 . 107 2 13 137 2 29 . 31 70 107 88 281 79 121 AOE 35 | . . . 1 3 . . . . . . . . . . . . . 4 . . 4 . . . 4 5 1 2 3 3 5 Critical Strikes 101 | . . 2 8 1 1 . . 2 1 . 13 1 . . . . . 7 . . 5 . 2 . 2 8 4 7 20 8 9 Actively Blocked 85 | . . . 2 . 1 . . . . . 9 1 . . . . . 7 . . 5 . 2 . 2 8 4 7 20 8 9 Part Disruptions 11 | . . . . . . . . . . . 2 . . . . 2 . 1 . . . . . . . . . 1 5 . . Damage Taken 35343 | . 385 531 2159 2279 253 24 . 414 65 . 2790 55 59 . 227 773 . 2363 23 484 3023 35 542 . 804 1747 2267 1681 6958 1946 3456 Core 28344 | . 308 437 1735 1821 195 18 . 326 54 . 2227 42 46 . 178 624 . 1875 17 397 2426 28 441 . 637 1411 1825 1327 5592 1570 2787 Absorbed by Shields 216 | . . . . . . . . . . . . . . . . . . . . . . . . . . . 65 86 56 9 . Redirected to Core 24948 | . 228 306 1477 1571 195 18 . 305 38 . 1966 42 46 . 163 536 . 1760 17 324 2120 28 356 . 596 1186 1599 1254 5007 1382 2428 Ignored by Resistances 2034 | . . . 80 178 23 2 . 33 2 . 189 4 3 . 16 45 . 124 2 15 172 3 40 . 45 92 154 102 391 100 219 Core Remaining (%) 96 | 100 71 100 96 . . . . 96 . . . . . . 100 . . . . . . 100 . . . 100 . 100 100 . 97 Volleys Fired 4271 | . 78 166 136 354 19 7 5 39 13 4 414 13 12 . 40 143 5 323 14 36 329 17 107 15 161 252 249 213 642 232 233 Largest 7 | . 4 4 6 6 6 6 6 6 6 6 6 6 6 . 6 6 6 6 6 6 6 6 6 6 6 6 7 6 7 7 7 Hottest 195 | . 80 90 126 150 150 150 150 150 150 150 150 150 150 . 150 150 150 150 150 150 150 150 150 150 150 150 175 150 175 175 195 Shots Fired 25426 | . 181 419 639 2111 114 42 30 234 78 24 2480 78 72 . 235 851 30 1866 84 216 1959 102 642 90 966 1417 1714 1207 4457 1571 1517 Gun 25258 | . 160 342 639 2110 114 42 30 234 78 24 2480 78 72 . 235 851 30 1857 84 216 1956 102 642 90 966 1398 1714 1195 4457 1563 1499 Cannon 46 | . . . . . . . . . . . . . . . . . . 9 . . . . . . . 19 . . . 8 10 Launcher 101 | . 21 77 . 1 . . . . . . . . . . . . . . . . . . . . . . . . . . 2 Special 21 | . . . . . . . . . . . . . . . . . . . . . 3 . . . . . . 12 . . 6 Kinetic 25285 | . 160 342 639 2110 114 42 30 234 78 24 2480 78 72 . 235 851 30 1866 84 216 1956 102 642 90 966 1398 1714 1195 4457 1571 1509 Thermal 19 | . . . . . . . . . . . . . . . . . . . . . . . . . . 19 . . . . . Explosive 101 | . 21 77 . 1 . . . . . . . . . . . . . . . . . . . . . . . . . . 2 Electromagnetic . | . . . . . . . . . . . . . . . . . . . . . . . . . . . . . . . . Robot Hit Streak 108 | . 14 22 61 39 30 22 5 27 14 10 45 10 9 . 16 69 34 44 28 37 39 34 32 61 58 59 45 63 57 80 108 Robot Miss Streak 9 | . 8 7 3 3 1 2 3 2 2 2 7 3 2 . 2 3 1 5 1 2 4 2 3 1 9 5 7 3 8 5 4 Penetration Max . | . . . . . . . . . . . . . . . . . . . . . . . . . . . . . . . . Secondary Targets 1089 | . 1 8 15 64 5 1 . 13 . . 51 . 2 . 7 28 . 70 4 7 96 5 30 5 31 64 75 82 234 72 119 Max Gunslinging Chain 3 | . 1 2 1 2 1 1 . 2 . . 2 . 1 . 1 2 . 2 2 1 2 1 2 1 2 3 3 2 2 3 3 Shots Hit Robots 17873 | . 81 230 520 1199 79 23 13 158 43 18 1531 43 38 . 129 587 18 1273 51 144 1430 78 449 85 650 1025 1262 1008 3416 1098 1194 Core Hits 8051 | . 40 124 214 498 33 13 4 63 18 2 584 13 16 . 54 271 7 528 19 63 649 31 220 26 311 483 621 491 1541 512 602 Critical Kills 681 | . 1 1 . 1 . . . 4 1 . 40 2 2 . 5 28 3 44 1 3 69 3 19 2 35 52 72 46 150 34 63 Critical Parts Destroyed 902 | . 2 3 2 4 1 . . 11 3 1 101 4 1 . 9 35 1 74 4 10 98 5 31 2 34 40 70 55 202 41 58 Critical Strikes 1639 | . 3 4 2 5 1 . . 15 4 3 141 6 4 . 14 64 4 118 5 15 173 8 52 10 70 95 143 103 364 82 131 Destroy 1639 | . 3 4 2 5 1 . . 15 4 3 141 6 4 . 14 64 4 118 5 15 173 8 52 10 70 95 143 103 364 82 131 Melee Attacks 36 | . . . . . . . . . . . 2 . . . 1 6 . . . . . . . . . . 4 23 . . . Impact 6 | . . . . . . . . . . . . . . . . 6 . . . . . . . . . . . . . . . Slashing . | . . . . . . . . . . . . . . . . . . . . . . . . . . . . . . . . Piercing 30 | . . . . . . . . . . . 2 . . . 1 . . . . . . . . . . . 4 23 . . . Sneak Attacks . | . . . . . . . . . . . . . . . . . . . . . . . . . . . . . . . . Combat Hostiles . | . . . . . . . . . . . . . . . . . . . . . . . . . . . . . . . . Follow-up Attacks . | . . . . . . . . . . . . . . . . . . . . . . . . . . . . . . . . Damage Inflicted 389165 | . 857 3303 4960 23255 1628 492 195 3038 974 385 29707 972 729 . 2703 12430 398 30040 1186 2995 31509 1288 8990 1657 13082 18974 25734 23885 84618 28200 30981 Guns 383535 | . 763 2139 4960 22832 1628 492 195 3038 974 385 29635 972 729 . 2703 12430 398 28425 1186 2995 31509 1288 8861 1657 12832 18904 25734 23810 84618 28200 29243 Cannons . | . . . . . . . . . . . . . . . . . . . . . . . . . . . . . . . . Explosions 5555 | . 94 1164 . 423 . . . . . . 72 . . . . . . 1615 . . . . 129 . 250 70 . . . . 1738 Melee . | . . . . . . . . . . . . . . . . . . . . . . . . . . . . . . . . Ramming 75 | . . . . . . . . . . . . . . . . . . . . . . . . . . . . 75 . . . Kinetic 383535 | . 763 2139 4960 22832 1628 492 195 3038 974 385 29635 972 729 . 2703 12430 398 28425 1186 2995 31509 1288 8861 1657 12832 18904 25734 23810 84618 28200 29243 Thermal 616 | . . 120 . 188 . . . . . . . . . . . . . 134 . . . . 129 . 45 . . . . . . Explosive 4652 | . 94 997 . 218 . . . . . . . . . . . . . 1330 . . . . . . 205 70 . . . . 1738 Electromagnetic 287 | . . 47 . 17 . . . . . . 72 . . . . . . 151 . . . . . . . . . . . . . Impact . | . . . . . . . . . . . . . . . . . . . . . . . . . . . . . . . . Slashing . | . . . . . . . . . . . . . . . . . . . . . . . . . . . . . . . . Piercing . | . . . . . . . . . . . . . . . . . . . . . . . . . . . . . . . . Highest Corruption 9 | . 1 1 . 4 . . . . . . 3 2 2 2 2 1 9 9 . . . . . . . . . . . . . Average Corruption 2 | . 1 1 . 3 . . . . . . 1 2 2 2 2 1 9 5 . . . . . . . . . . . . . Corruption Purged 24 | . . . . 4 . . . . . . 5 . . . . 1 . 14 . . . . . . . . . . . . . Corruption Blocked 49 | . . . . . . . . . . . . . . . . . . . . . 3 . 1 . 3 1 5 9 14 5 8 Effects 157 | . 5 2 . 49 . . . . . . 50 5 2 . 6 1 1 36 . . . . . . . . . . . . . Message Errors 36 | . 2 . . 7 . . . . . . 17 2 . . 2 . 1 5 . . . . . . . . . . . . . Matter Fused 25 | . . 1 . 4 . . . . . . 9 3 . . . . . 8 . . . . . . . . . . . . . Heat Flow Errors 22 | . 1 . . 10 . . . . . . 3 . 1 . 2 . . 5 . . . . . . . . . . . . . Energy Discharges 14 | . . 1 . 5 . . . . . . 4 . . . . . . 4 . . . . . . . . . . . . . Parts Rejected 2 | . . . . . . . . . . . 1 . . . . . . 1 . . . . . . . . . . . . . Parts Fused 4 | . . . . 1 . . . . . . . . 1 . . . . 2 . . . . . . . . . . . . . Data Loss (minor) 19 | . 1 . . 11 . . . . . . 5 . . . . . . 2 . . . . . . . . . . . . . Data Loss (major) 9 | . . . . 3 . . . . . . 2 . . . 1 1 . 2 . . . . . . . . . . . . . Misfires 5 | . . . . 3 . . . . . . 2 . . . . . . . . . . . . . . . . . . . . Alerts 3 | . . . . . . . . . . . 1 . . . 1 . . 1 . . . . . . . . . . . . . Weapon Failures 18 | . 1 . . 5 . . . . . . 6 . . . . . . 6 . . . . . . . . . . . . . Overload Shots 2 | . . . . . . . . . . . . . . . . . . . . . . . . . . 2 . . . . . Overflow Damage 207 | . . 7 . 84 . . . . . . . . . . . . . 32 . . . . . . 8 . . . . . 76 Projectiles . | . . . . . . . . . . . . . . . . . . . . . . . . . . . . . . . . Explosions 207 | . . 7 . 84 . . . . . . . . . . . . . 32 . . . . . . 8 . . . . . 76 Melee . | . . . . . . . . . . . . . . . . . . . . . . . . . . . . . . . . Knockbacks 1 | . . . . . . . . . . . . . . . . . . . . . . . . . . . . 1 . . . Impact 1 | . . . . . . . . . . . . . . . . . . . . . . . . . . . . 1 . . . Kinetic . | . . . . . . . . . . . . . . . . . . . . . . . . . . . . . . . . Secondary . | . . . . . . . . . . . . . . . . . . . . . . . . . . . . . . . . Self-Inflicted Damage 125 | . 48 12 . . . . . . . . 28 . . . . . . . . . . . . . . . . 37 . . . Shots 4 | . 2 1 . . . . . . . . 1 . . . . . . . . . . . . . . . . . . . . Rammed 1 | . . . . . . . . . . . . . . . . . . . . . . . . . . . . 1 . . . Targets Rammed 1 | . . . . . . . . . . . . . . . . . . . . . . . . . . . . 1 . . . Kicked . | . . . . . . . . . . . . . . . . . . . . . . . . . . . . . . . . Crushed . | . . . . . . . . . . . . . . . . . . . . . . . . . . . . . . . . Highest Temperature 562 | . 235 300 345 423 201 75 244 234 141 138 398 168 176 . 302 407 142 451 152 220 562 267 458 180 161 238 356 92 358 184 225 Average Temperature 95 | . 45 67 88 101 95 63 98 94 78 84 100 59 65 . 98 106 73 93 64 77 135 121 137 82 74 87 137 45 81 70 70 Received Heat Transfer 4949 | . 81 171 963 693 54 9 . 120 . . 297 29 . . 27 69 . 252 . . 522 12 111 . 114 288 303 196 301 85 252 Effects 28 | . . 2 6 . . . . . . . 4 . . . . . . 1 . . 4 . 4 . . . 6 . 1 . . Shutdowns 6 | . . . . . . . . . . . 1 . . . . . . 1 . . 1 . 1 . . . 1 . 1 . . Energy Bleed 6 | . . . 1 . . . . . . . 3 . . . . . . . . . . . 1 . . . 1 . . . . Interference 11 | . . 2 5 . . . . . . . . . . . . . . . . . . . 1 . . . 3 . . . . Matter Decay 2 | . . . . . . . . . . . . . . . . . . . . . 1 . . . . . 1 . . . . Short Circuit 3 | . . . . . . . . . . . . . . . . . . . . . 2 . 1 . . . . . . . . Siege Activations . | . . . . . . . . . . . . . . . . . . . . . . . . . . . . . . . . Martial Activations . | . . . . . . . . . . . . . . . . . . . . . . . . . . . . . . . . Shielding Activations . | . . . . . . . . . . . . . . . . . . . . . . . . . . . . . . . . Robots Disrupted . | . . . . . . . . . . . . . . . . . . . . . . . . . . . . . . . . Combat Hostiles . | . . . . . . . . . . . . . . . . . . . . . . . . . . . . . . . . Robots Corrupted . | . . . . . . . . . . . . . . . . . . . . . . . . . . . . . . . . Combat Hostiles . | . . . . . . . . . . . . . . . . . . . . . . . . . . . . . . . . Parts Fried 3 | . . . . . . . . . . . . . . . . . . 2 . . . . . . . . . . 1 . . Impact Corruptions . | . . . . . . . . . . . . . . . . . . . . . . . . . . . . . . . . Robots Melted . | . . . . . . . . . . . . . . . . . . . . . . . . . . . . . . . . Combat Hostiles . | . . . . . . . . . . . . . . . . . . . . . . . . . . . . . . . . Parts Melted 4 | . . . . . . . . . . . . . . . . . . . . . 3 . . . . . . . . . 1 Heat Transferred 550 | . . 100 . 150 . . . . . . . . . . . . . 150 . . . . 100 . 50 . . . . . . Parts Sabotaged 4 | . . . . . . . . . . . . . . . . . . . . . . . . . . . . . 4 . . Parts Stolen . | . . . . . . . . . . . . . . . . . . . . . . . . . . . . . . . . Parts Stripped . | . . . . . . . . . . . . . . . . . . . . . . . . . . . . . . . . Power Chain Reactions 3 | . . . . 1 . . . . . . 2 . . . . . . . . . . . . . . . . . . . . Alert | -11 -10 -9 -8 -7 -7 -7 -7 -6 -6 -6 -6 -6 -6 -6 -5 -5 -5 -5 -5 -5 -5 -4 -4 -4 -4 -4 -3 -3 -2 -1 -1 ------- Run | Yrd Mat Mat Mat Fac Low Low Zio Pro Fac Was Fac Low Low Dat Pro Fac Was Fac Upp Upp War Pro Fac Was Fac Arm Res Tes Res Acc Com Maximum Alert Level 5 | . 2 4 4 5 . . . . 1 . 5 . . . . 4 2 5 . . . . 3 1 4 5 5 5 5 5 5 Low Security (%) 10 | 100 74 13 . 12 . . . . . 100 12 . . . . 2 . 12 . . . . 19 . 26 . . . . . . Level 1 10 | . 18 23 . 6 . . . . 100 . 11 . . . . 19 . 13 . . . . 17 100 27 . . . . . . Level 2 11 | . 7 25 16 11 . . . . . . 11 . . . . 19 100 12 . . . . 45 . 17 15 . . . . . Level 3 12 | . . 5 38 12 . . . . . . 17 . . . . 36 . 13 . . . . 17 . 15 35 . . . . . Level 4 11 | . . 31 44 26 . . . . . . 18 . . . . 21 . 4 . . . . . . 13 9 1 . . . . Level 5 12 | . . . . 8 . . . . . . 15 . . . . . . 41 . . . . . . . 3 11 37 2 12 20 High Security 30 | . . . . 22 . . . . . . 13 . . . . . . . . . . . . . . 35 86 62 97 87 79 Max Security . | . . . . . . . . . . . . . . . . . . . . . . . . . . . . . . . . Sterilizations 8 | . . . 1 1 . . . . . . 1 . . . . . . 1 . . . . . . . 1 1 1 . 1 . Peak Influence 17509 | . 515 1491 1400 4150 . . . . 302 96 3351 . . . . 1408 491 3594 . . . . 848 295 1241 3558 5497 6309 15383 13331 17509 Initial 9229 | . . 141 569 464 . . . . 261 96 32 . . . . 353 491 336 . . . . 16 295 185 604 1867 3091 3548 9229 8531 Average 2974 | . 155 661 1015 1482 . . . . 277 72 1247 . . . . 741 486 1416 . . . . 438 280 512 1614 3945 4134 9024 11513 11769 Influence Increases 73375 | . 886 2470 1508 5284 350 165 20 595 194 . 4955 91 240 . 625 2543 . 5252 155 490 4980 170 1780 . 3173 4060 4040 4064 11865 4172 9248 Destroy 0b10 Robot/C 47400 | . 260 840 1080 2980 340 140 20 540 100 . 2700 80 200 . 560 1520 . 3000 120 420 4340 140 1320 . 2080 3040 3160 2740 9040 2820 3820 Destroy 0b10 Robot/NC 2695 | . 50 120 80 405 . 5 . 5 20 . 375 . . . 20 165 . 215 35 20 115 20 80 . 80 60 195 95 300 130 105 Destroy Leader 7298 | . 58 262 272 592 10 20 . 50 56 . 642 10 40 . 30 352 . 650 . 50 . 10 220 . 468 502 482 286 1482 484 270 Allied During Kill 23 | . . . . . . . . . . . 10 1 . . . . . 12 . . . . . . . . . . . . . Trap Triggered on 0b10 20 | . . . . . . . . . . . . . . . . . . . . . . . . . . 20 . . . . . Successful Hack 681 | . 29 37 28 141 . . . . . . 86 . . . . 68 . 39 . . . . 12 . 42 6 48 18 26 39 62 Select Force Hacks 300 | . . . . . . . . . . . 120 . . . . . . 30 . . . . . . 90 60 . . . . . Disable Machine 3750 | . 300 720 . 840 . . . . . . 360 . . . . 75 . 780 . . . . 75 . 150 225 . 120 . 60 45 Anti-Garrison Action 400 | . . . . . . . . . . . 350 . . . . . . . . . . . . . . . . . . . 50 Destroy Structure 2438 | . 174 431 3 326 . . . . 3 . 207 . . . . 78 . 466 . . . . 58 . 158 42 20 40 57 129 246 Advance Influence 150 | . . . . . . . . . . . . . . . . 150 . . . . . . . . . . . . . . . Partial Spotted 300 | . 15 30 . . . . . . 15 . 30 . . . . 30 . 45 . . . . . . 60 15 15 . 45 . . Lose Combat Pursuer 7920 | . . 30 45 . . . . . . . 75 . . . 15 105 . 15 . . 525 . 15 . 45 90 120 765 915 510 4650 Influence Decreases 55866 | . 551 1456 1836 2155 1726 708 2237 194 334 229 1650 1381 553 1748 302 1461 924 2147 1447 627 2731 4550 962 579 2204 1736 2101 3252 2791 6224 5070 Entered New Map 38156 | . . 194 780 557 1536 528 2231 14 154 179 14 1241 393 1748 . 120 914 145 1327 437 2157 4406 10 549 80 630 1691 2406 2761 6154 4800 Time Decay 8528 | . 401 502 446 688 190 180 6 180 180 50 716 140 160 . 302 571 10 720 120 190 564 144 492 30 614 356 110 246 30 70 120 Lost Part 10 | . . . . . . . . . . . . . . . . . . . . . 10 . . . . . . . . . . Lost Ally 180 | . . 10 10 10 . . . . . . 20 . . . . 20 . 90 . . . . 10 . 10 . . . . . . Purge Threat 8992 | . 150 750 600 900 . . . . . . 900 . . . . 750 . 1192 . . . . 450 . 1500 750 300 600 . . 150 Squads Dispatched 350 | . 1 9 12 42 . . . 1 1 . 45 . . . . 19 . 35 . 1 . . 14 . 25 22 28 32 2 33 28 Investigation 63 | . 1 8 3 10 . . . . . . 11 . . . . 2 . 5 . . . . 4 . 8 3 2 2 1 3 . Extermination 51 | . . . . 7 . . . . 1 . 10 . . . . 5 . 8 . . . . 4 . 7 4 1 1 . 2 1 Reinforcement 52 | . . 1 3 6 . . . . . . 9 . . . . 4 . 11 . . . . 2 . 4 5 . 1 1 3 2 Assault 158 | . . . 5 17 . . . 1 . . 14 . . . . 1 . 7 . 1 . . 4 . 2 10 22 27 . 22 25 Garrison 26 | . . . 1 2 . . . . . . 1 . . . . 7 . 4 . . . . . . 4 . 3 1 . 3 . Intercept . | . . . . . . . . . . . . . . . . . . . . . . . . . . . . . . . . Searches Triggered . | . . . . . . . . . . . . . . . . . . . . . . . . . . . . . . . . Unchained Authorized 6 | . . . . . . . . . 1 . 2 . . . . 1 . 2 . . . . . . . . . . . . . Construction Impeded 5 | . . 1 . 2 . . . . . . . . . . . . . 2 . . . . . . . . . . . . . Haulers Reinforced 8 | . . . . 1 . . . . . . 2 . . . . 1 . 2 . . . . 1 . . . . . . 1 . Active Scanning Responses . | . . . . . . . . . . . . . . . . . . . . . . . . . . . . . . . . Cargo Convoy Interrupts 1 | . . . . . . . . . . . . . . . . 1 . . . . . . . . . . . . . . . Stealth | -11 -10 -9 -8 -7 -7 -7 -7 -6 -6 -6 -6 -6 -6 -6 -5 -5 -5 -5 -5 -5 -5 -4 -4 -4 -4 -4 -3 -3 -2 -1 -1 --------- Run | Yrd Mat Mat Mat Fac Low Low Zio Pro Fac Was Fac Low Low Dat Pro Fac Was Fac Upp Upp War Pro Fac Was Fac Arm Res Tes Res Acc Com Distress Signals 39 | . 1 1 2 2 . . . . . . 1 . . . . 1 . 4 . . 1 . 1 . 1 . 2 3 5 7 7 Communications Jammed . | . . . . . . . . . . . . . . . . . . . . . . . . . . . . . . . . Distress Signals . | . . . . . . . . . . . . . . . . . . . . . . . . . . . . . . . . Times Spotted 3299 | . 21 51 64 167 17 5 1 27 4 . 190 5 5 . 27 93 3 220 4 17 253 6 69 6 107 155 192 244 595 172 579 Peak Tracking Total 173 | . 4 5 10 10 11 2 1 9 1 . 10 1 2 . 7 11 2 18 4 5 20 4 5 6 6 16 16 21 39 19 173 Tactical Retreats 113 | . . 2 2 . . . . . . . 4 . . . 1 2 . 14 . . 11 . 1 . 2 3 6 15 15 12 23 Traps | -11 -10 -9 -8 -7 -7 -7 -7 -6 -6 -6 -6 -6 -6 -6 -5 -5 -5 -5 -5 -5 -5 -4 -4 -4 -4 -4 -3 -3 -2 -1 -1 ------- Run | Yrd Mat Mat Mat Fac Low Low Zio Pro Fac Was Fac Low Low Dat Pro Fac Was Fac Upp Upp War Pro Fac Was Fac Arm Res Tes Res Acc Com Traps Triggered 53 | . . . 1 4 . . . . 2 . 7 . . . . 2 . . . . . . 1 . 1 2 6 4 . 4 19 Indirectly . | . . . . . . . . . . . . . . . . . . . . . . . . . . . . . . . . Trap Hack Attempts . | . . . . . . . . . . . . . . . . . . . . . . . . . . . . . . . . Triggered . | . . . . . . . . . . . . . . . . . . . . . . . . . . . . . . . . Disarmed . | . . . . . . . . . . . . . . . . . . . . . . . . . . . . . . . . Reprogrammed 2 | . . . . . . . . . . . . . . . . . . . . . . . . . . 2 . . . . . Reused 2 | . . . . . . . . . . . . . . . . . . . . . . . . . . 2 . . . . . Traps Extracted . | . . . . . . . . . . . . . . . . . . . . . . . . . . . . . . . . Installed . | . . . . . . . . . . . . . . . . . . . . . . . . . . . . . . . . Triggered 2 | . . . . . . . . . . . . . . . . . . . . . . . . . . 2 . . . . . Machines | -11 -10 -9 -8 -7 -7 -7 -7 -6 -6 -6 -6 -6 -6 -6 -5 -5 -5 -5 -5 -5 -5 -4 -4 -4 -4 -4 -3 -3 -2 -1 -1 ---------- Run | Yrd Mat Mat Mat Fac Low Low Zio Pro Fac Was Fac Low Low Dat Pro Fac Was Fac Upp Upp War Pro Fac Was Fac Arm Res Tes Res Acc Com Machines Disabled 262 | . 20 48 . 56 1 . . . . . 25 1 . . 1 5 . 52 . . . . 5 . 10 15 4 8 . 6 5 Max in Single Turn 15 | . 4 3 . 4 1 . . . . . 4 1 . . 1 3 . 15 . . . . 5 . 4 1 1 1 . 1 2 Garrison Access 20 | . . . 1 4 . . . . . . 3 . . . . 1 . 4 . . . . . . 2 . 1 1 3 . . Phase Generator 1 | . . . . . . . . . . . . . . . . . . . . . . . . . . . . . . . 1 Energy Cycler 3 | . . . . . . . . . . . . . . . . . . . . . . . . . . 1 . . . 2 . Machines Repaired . | . . . . . . . . . . . . . . . . . . . . . . . . . . . . . . . . Machines Dismantled . | . . . . . . . . . . . . . . . . . . . . . . . . . . . . . . . . Machines Sabotaged . | . . . . . . . . . . . . . . . . . . . . . . . . . . . . . . . . Overloaded Fab Kills . | . . . . . . . . . . . . . . . . . . . . . . . . . . . . . . . . Hacking | -11 -10 -9 -8 -7 -7 -7 -7 -6 -6 -6 -6 -6 -6 -6 -5 -5 -5 -5 -5 -5 -5 -4 -4 -4 -4 -4 -3 -3 -2 -1 -1 --------- Run | Yrd Mat Mat Mat Fac Low Low Zio Pro Fac Was Fac Low Low Dat Pro Fac Was Fac Upp Upp War Pro Fac Was Fac Arm Res Tes Res Acc Com Machines Accessed 254 | . 9 14 15 25 3 . . . 1 . 20 2 2 4 1 21 . 36 1 3 3 1 16 . 26 13 6 11 4 5 12 Terminals 155 | . 8 12 11 17 1 . . . . . 11 . . . . 15 . 19 1 . . 1 6 . 13 11 4 9 2 3 11 Fabricators 16 | . . . . 2 . . . . . . . . . . . . . 2 . . . . 4 . 4 . 1 1 1 1 . Repair Stations 1 | . . . . . . . . . . . . . . . . . . . . . . . 1 . . . . . . . . Recycling Units 37 | . 1 1 2 1 . . . . 1 . 5 . . . . 4 . 8 . . . . 4 . 7 2 . . . . 1 Scanalyzers 11 | . . 1 1 1 . . . . . . 2 . . . . 1 . 3 . . . . 1 . . . . . . 1 . Garrison Access 17 | . . . 1 4 . . . . . . 2 . . . . 1 . 4 . . . . . . 2 . 1 1 1 . . Total Hacks 1022 | . 26 66 62 111 13 . . . 2 . 69 8 2 29 1 61 . 142 1 5 4 1 62 . 133 80 31 48 21 13 31 Successful 622 | . 14 35 28 54 13 . . . 1 . 36 8 2 29 1 40 . 101 1 5 4 1 49 . 99 39 18 17 9 2 16 Failed 397 | . 12 30 34 56 . . . . 1 . 32 . . . . 21 . 41 . . . . 13 . 34 41 13 31 12 11 15 Catastrophic 64 | . 4 5 3 7 . . . . . . 2 . . . . 2 . 7 . . . . . . 7 9 2 10 2 . 4 Database Lockouts 3 | . . 1 . 1 . . . . . . 1 . . . . . . . . . . . . . . . . . . . . Manual 481 | . 22 39 44 67 . . 1 . 2 . 35 . . . . 38 . 63 . . 1 1 28 . 49 33 13 19 6 6 14 Terminals 781 | . 25 62 54 96 6 . . . . . 52 . . . . 50 . 103 1 . . 1 36 . 97 76 27 43 16 7 29 Fabricators 47 | . . . . 5 . . . . . . . . . . . . . 5 . . . . 13 . 12 . 3 2 4 3 . Repair Stations 2 | . . . . . . . . . . . . . . . . . . . . . . . 2 . . . . . . . . Recycling Units 84 | . 1 1 3 1 . . . . 2 . 8 . . . . 9 . 24 . . . . 9 . 20 4 . . . . 2 Scanalyzers 21 | . . 3 2 1 . . . . . . 4 . . . . 1 . 5 . . . . 2 . . . . . . 3 . Garrison Access 31 | . . . 3 8 . . . . . . 5 . . . . 1 . 5 . . . . . . 4 . 1 3 1 . . Terminal Hacks 337 | . 4 19 10 30 13 . . . . . 19 8 2 29 1 14 . 42 1 5 4 1 15 . 56 30 11 10 4 1 8 Record 55 | . . . . 1 12 . . . . . 1 7 . 11 1 . . . 1 3 2 1 . . 5 2 3 . 3 . 2 Part Schematic 18 | . . . . 2 . . . . . . 1 . . 10 . . . 1 . . . . 1 . 2 . . 1 . . . Robot Schematic 5 | . . . . . . . . . . . . . . 5 . . . . . . . . . . . . . . . . . Robot Analysis 5 | . . 1 . 1 . . . . . . . . . . . 1 . 2 . . . . . . . . . . . . . Prototype ID Bank 26 | . 1 4 2 4 . . . . . . 2 . . 3 . . . 3 . . . . 1 . 2 4 . . . . . Open Door 9 | . . . . . 1 . . . . . . 1 2 . . . . . . 2 2 . . . . . . 1 . . . Open DSF 1 | . . . . . . . . . . . 1 . . . . . . . . . . . . . . . . . . . . Level Access Points 4 | . . . . 1 . . . . . . . . . . . . . . . . . . . . 1 1 . . . . 1 Branch Access Points 5 | . . . . 1 . . . . . . . . . . . . . 1 . . . . . . 1 1 1 . . . . Emergency Access Points 2 | . . 1 . . . . . . . . . . . . . . . . . . . . . . 1 . . . . . . Machine Index 3 | . . . . 1 . . . . . . . . . . . . . . . . . . . . 1 1 . . . . . Terminal Index 11 | . 1 . 2 1 . . . . . . 1 . . . . 1 . 1 . . . . 1 . 1 1 . . . 1 . Fabricator Index 2 | . . . . 1 . . . . . . . . . . . . . . . . . . . . 1 . . . . . . Repair Station Index 1 | . . . . . . . . . . . . . . . . . . . . . . . . . 1 . . . . . . Recycling Unit Index 2 | . . . . . . . . . . . . . . . . . . 1 . . . . . . 1 . . . . . . Scanalyzer Index 4 | . . . . 1 . . . . . . . . . . . 1 . 1 . . . . . . 1 . . . . . . Garrison Index 2 | . . . . . . . . . . . . . . . . . . 1 . . . . . . 1 . . . . . . Alert Level 47 | . . 3 . 4 . . . . . . 3 . . . . 4 . 9 . . . . 4 . 12 3 1 1 1 . 2 Unreport Threat 59 | . 1 5 4 6 . . . . . . 5 . . . . 5 . 8 . . . . 3 . 10 5 2 4 . . 1 Locate Traps 8 | . 1 3 . . . . . . . . 1 . . . . . . 1 . . . . . . . 1 1 . . . . Reprogram Traps 1 | . . . . . . . . . . . . . . . . . . . . . . . . . . 1 . . . . . Security Status 1 | . . . . . . . . . . . . . . . . . . . . . . . . . 1 . . . . . . Transport Status 2 | . . . . 1 . . . . . . 1 . . . . . . . . . . . . . . . . . . . . Investigation Status 6 | . . . . . . . . . . . . . . . . . . 3 . . . . . . 2 1 . . . . . Extermination Status 1 | . . . . . . . . . . . . . . . . . . . . . . . . . . . 1 . . . . Reinforcement Status 3 | . . . . . . . . . . . . . . . . . . . . . . . 1 . 2 . . . . . . Assault Status 3 | . . . . . . . . . . . . . . . . . . 2 . . . . 1 . . . . . . . . Recall Investigation 10 | . . . . 1 . . . . . . . . . . . . . 2 . . . . 1 . 4 1 1 . . . . Recall Extermination 3 | . . . . . . . . . . . 1 . . . . . . . . . . . . . 1 . 1 . . . . Recall Reinforcements 2 | . . . 1 . . . . . . . . . . . . . . . . . . . . . . . . 1 . . . Recall Assault 2 | . . . . . . . . . . . . . . . . . . 1 . . . . . . . . . 1 . . . Hauler Manifests 6 | . . 1 . 1 . . . . . . . . . . . 1 . 1 . . . . . . 1 1 . . . . . Registered Components 10 | . . 1 1 1 . . . . . . 1 . . . . 1 . 1 . . . . 1 . 1 2 . . . . . Registered Prototypes 6 | . . . . 1 . . . . . . 1 . . . . . . 1 . . . . 1 . 1 1 . . . . . Zone Layout 9 | . . . . 1 . . . . . . . . . . . . . 2 . . . . . . 2 4 . . . . . Protovariant Controls 1 | . . . . . . . . . . . . . . . . . . . . . . . . . . . . 1 . . . Disengage Seal 2 | . . . . . . . . . . . . . . . . . . . . . . . . . . . . . . . 2 Fabricator Hacks 34 | . . . . 4 . . . . . . . . . . . . . 5 . . . . 9 . 10 . 2 2 2 . . Network Status 2 | . . . . . . . . . . . . . . . . . . . . . . . 1 . 1 . . . . . . Load Schematic 17 | . . . . 2 . . . . . . . . . . . . . 3 . . . . 4 . 5 . 1 1 1 . . Build 15 | . . . . 2 . . . . . . . . . . . . . 2 . . . . 4 . 4 . 1 1 1 . . Repair Station Hacks 2 | . . . . . . . . . . . . . . . . . . . . . . . 2 . . . . . . . . Scan Component 1 | . . . . . . . . . . . . . . . . . . . . . . . 1 . . . . . . . . Repair 1 | . . . . . . . . . . . . . . . . . . . . . . . 1 . . . . . . . . Recycling Unit Hacks 33 | . 1 1 3 1 . . . . . . . . . . . 3 . 9 . . . . 4 . 8 2 . . . . 1 Report Inventory 3 | . . . 2 1 . . . . . . . . . . . . . . . . . . . . . . . . . . . Retrieve Components 30 | . 1 1 1 . . . . . . . . . . . . 3 . 9 . . . . 4 . 8 2 . . . . 1 Scanalyzer 15 | . . 2 2 1 . . . . . . 1 . . . . 1 . 5 . . . . 2 . . . . . . 1 . Insert Component 8 | . . . . . . . . . . . 1 . . . . . . 5 . . . . 1 . . . . . . 1 . Retrieve Study 7 | . . 2 2 1 . . . . . . . . . . . 1 . . . . . . 1 . . . . . . . . Garrison Access Hacks 16 | . . . 1 4 . . . . . . 1 . . . . 1 . 4 . . . . . . 2 . 1 1 1 . . Seal Access 16 | . . . 1 4 . . . . . . 1 . . . . 1 . 4 . . . . . . 2 . 1 1 1 . . Unauthorized Hacks 184 | . 9 13 11 14 . . . . 1 . 15 . . . . 21 . 36 . . . . 17 . 23 7 4 4 2 . 7 Terminals 147 | . 9 13 11 14 . . . . . . 9 . . . . 17 . 27 . . . . 10 . 15 5 4 4 2 . 7 Assimilate 26 | . 3 . 1 3 . . . . . . 2 . . . . 2 . 10 . . . . 1 . 4 . . . . . . Botnet 106 | . 5 11 8 11 . . . . . . 5 . . . . 14 . 17 . . . . 6 . 10 4 3 4 2 . 6 Disrupt 2 | . . . 1 . . . . . . . . . . . . . . . . . . . 1 . . . . . . . . Operators 13 | . 1 2 1 . . . . . . . 2 . . . . 1 . . . . . . 2 . 1 1 1 . . . 1 Fabricators 3 | . . . . . . . . . . . . . . . . . . . . . . . 3 . . . . . . . . Haulers 1 | . . . . . . . . . . . . . . . . . . . . . . . 1 . . . . . . . . Recompile 2 | . . . . . . . . . . . . . . . . . . . . . . . 2 . . . . . . . . Repair Stations . | . . . . . . . . . . . . . . . . . . . . . . . . . . . . . . . . Recycling Units 33 | . . . . . . . . . 1 . 5 . . . . 4 . 9 . . . . 4 . 8 2 . . . . . Monitor 1 | . . . . . . . . . . . 1 . . . . . . . . . . . . . . . . . . . . Reject 22 | . . . . . . . . . 1 . . . . . . 4 . 8 . . . . 4 . 5 . . . . . . Tunnel 10 | . . . . . . . . . . . 4 . . . . . . 1 . . . . . . 3 2 . . . . . Scanalyzers . | . . . . . . . . . . . . . . . . . . . . . . . . . . . . . . . . Garrison Access 1 | . . . . . . . . . . . 1 . . . . . . . . . . . . . . . . . . . . Jam 1 | . . . . . . . . . . . 1 . . . . . . . . . . . . . . . . . . . . Data Cores Recovered 4 | . . . . 1 . . . . . . . . . . . 1 . . . . . . . . 1 . . . . . 1 Used 1 | . . . . . . . . . . . . . . . . . . . . . . . . . . . . . . . 1 Hacking Detections 162 | . 7 11 13 19 1 . . . 1 . 12 . . . . 13 . 17 . . . . 12 . 15 8 5 10 2 5 11 Full Trace Events 54 | . 4 8 4 9 1 . . . . . 6 . . . . 2 . 4 . . . . 2 . 5 1 2 2 1 3 . Feedback Events 3 | . . 1 . . . . . . . . . . . . . 1 . . . . . . . . . . . . . 1 . Corruption 3 | . . 1 . . . . . . . . . . . . . 1 . . . . . . . . . . . . . 1 . Feedback Blocked . | . . . . . . . . . . . . . . . . . . . . . . . . . . . . . . . . Robot Schematics Acquired 55 | . . . . . . . 3 . . . . . . 5 . 46 . . . . . . . . . . . 1 . . . Robots Built 1 | . . . . . . . . . . . . . . . . . . 1 . . . . . . . . . . . . . Authchips . | . . . . . . . . . . . . . . . . . . . . . . . . . . . . . . . . Time 187 | . . . . . . . . . . . . . . . . . . 187 . . . . . . . . . . . . . Total Robot Build Rating 7 | . . . . . . . . . . . . . . . . . . 7 . . . . . . . . . . . . . Part Schematics Acquired 43 | . . . . 2 . . 15 . . . 1 . . 10 . . . 1 . . . . 1 . 2 . . 11 . . . Parts Built 17 | . . . . 3 . . . . . . . . . . . . . 1 . . . . 5 . 5 . 1 1 1 . . Authchips 1 | . . . . . . . . . . . . . . . . . . . . . . . 1 . . . . . . . . Time 1498 | . . . . 100 . . . . . . . . . . . . . 152 . . . . 525 . 567 . 58 58 38 . . Total Part Build Rating 93 | . . . . 11 . . . . . . . . . . . . . 5 . . . . 35 . 33 . 3 3 3 . . Part Studies Acquired 7 | . . 2 2 1 . . . . . . . . . . . 1 . . . . . . 1 . . . . . . . . Parts Repaired . | . . . . . . . . . . . . . . . . . . . . . . . . . . . . . . . . Time 62 | . . . . . . . . . . . . . . . . . . . . . . . 62 . . . . . . . . Parts Recycled . | . . . . . . . . . . . . . . . . . . . . . . . . . . . . . . . . Recycled Matter . | . . . . . . . . . . . . . . . . . . . . . . . . . . . . . . . . Retrieved Matter . | . . . . . . . . . . . . . . . . . . . . . . . . . . . . . . . . Retrieved Components 94 | . 2 9 4 . . . . . . . . . . . . 7 . 23 . . . . 19 . 22 5 . . . . 3 Parts Scanalyzed . | . . . . . . . . . . . . . . . . . . . . . . . . . . . . . . . . Part Schematics Acquired . | . . . . . . . . . . . . . . . . . . . . . . . . . . . . . . . . Parts Damaged . | . . . . . . . . . . . . . . . . . . . . . . . . . . . . . . . . Bothacking | -11 -10 -9 -8 -7 -7 -7 -7 -6 -6 -6 -6 -6 -6 -6 -5 -5 -5 -5 -5 -5 -5 -4 -4 -4 -4 -4 -3 -3 -2 -1 -1 ------------ Run | Yrd Mat Mat Mat Fac Low Low Zio Pro Fac Was Fac Low Low Dat Pro Fac Was Fac Upp Upp War Pro Fac Was Fac Arm Res Tes Res Acc Com Used RIF Installer . | . . . . . . . . . . . . . . . . . . . . . . . . . . . . . . . . Robots Hacked 6 | . . . . . . . . . . . . . . . . . . . . . . . . . . . . 6 . . . Non-combat 3 | . . . . . . . . . . . . . . . . . . . . . . . . . . . . 3 . . . Combat 3 | . . . . . . . . . . . . . . . . . . . . . . . . . . . . 3 . . . Robot Hacks Applied 7 | . . . . . . . . . . . . . . . . . . . . . . . . . . . . 7 . . . no_distress 2 | . . . . . . . . . . . . . . . . . . . . . . . . . . . . 2 . . . check_alert 1 | . . . . . . . . . . . . . . . . . . . . . . . . . . . . 1 . . . find_scanalyzer 4 | . . . . . . . . . . . . . . . . . . . . . . . . . . . . 4 . . . Relay Couplers Released 4 | . . . . 1 . . . . . . 1 . . . . . . 1 . . . . . . . . . . 1 . . Machine Destruction 3 | . . . . 1 . . . . . . 1 . . . . . . . . . . . . . . . . . 1 . . Programmers 1 | . . . . . . . . . . . . . . . . . . 1 . . . . . . . . . . . . . Fabnet Peak Effective % . | . . . . . . . . . . . . . . . . . . . . . . . . . . . . . . . . Robots Rewired . | . . . . . . . . . . . . . . . . . . . . . . . . . . . . . . . . Allies Hacked 3 | . . . . . . . . . . . . . . . . 1 . 1 . . . . . . 1 . . . . . . Hacks Repelled 1 | . . . . . . . . . . . . . . . . . . . . . . . . . . . . . 1 . . Allies | -11 -10 -9 -8 -7 -7 -7 -7 -6 -6 -6 -6 -6 -6 -6 -5 -5 -5 -5 -5 -5 -5 -4 -4 -4 -4 -4 -3 -3 -2 -1 -1 -------- Run | Yrd Mat Mat Mat Fac Low Low Zio Pro Fac Was Fac Low Low Dat Pro Fac Was Fac Upp Upp War Pro Fac Was Fac Arm Res Tes Res Acc Com Total Allies 38 | . 1 . 1 2 2 . 2 . . . 14 2 . . . 2 . 8 . . . . 1 . 3 . . . . . . Largest Group 6 | . 1 1 1 2 3 1 2 . . . 4 2 . . . 1 . 6 . . . . 1 . 2 2 . . . . . Highest-Rated Group 107 | . 10 10 10 36 77 26 51 . . . 107 56 . . . 26 . 107 . . . . 26 . 52 49 . . . . . Highest-Rated Ally 36 | . 10 10 10 26 31 26 31 . . . 31 31 . . . 26 . 36 . . . . 26 . 26 26 . . . . . Total Orders 27 | . . . 1 4 . . . . 3 . 11 . . . . . . 4 . . . . . . 4 . . . . . . STAY 7 | . . . 1 2 . . . . . . 1 . . . . . . 1 . . . . . . 2 . . . . . . FOLLOW 4 | . . . . 2 . . . . . . . . . . . . . . . . . . . . 2 . . . . . . AID 1 | . . . . . . . . . . . . . . . . . . 1 . . . . . . . . . . . . . EXPLORE 2 | . . . . . . . . . . . . . . . . . . 2 . . . . . . . . . . . . . RETURN 13 | . . . . . . . . . 3 . 10 . . . . . . . . . . . . . . . . . . . . Ally Attacks . | . . . . . . . . . . . . . . . . . . . . . . . . . . . . . . . . Total Damage . | . . . . . . . . . . . . . . . . . . . . . . . . . . . . . . . . Kills . | . . . . . . . . . . . . . . . . . . . . . . . . . . . . . . . . Allies Corrupted 1 | . . . . . . . . . . . . . . . . . . . . . . . 1 . . . . . . . . Allies Melted . | . . . . . . . . . . . . . . . . . . . . . . . . . . . . . . . . Intel | -11 -10 -9 -8 -7 -7 -7 -7 -6 -6 -6 -6 -6 -6 -6 -5 -5 -5 -5 -5 -5 -5 -4 -4 -4 -4 -4 -3 -3 -2 -1 -1 ------- Run | Yrd Mat Mat Mat Fac Low Low Zio Pro Fac Was Fac Low Low Dat Pro Fac Was Fac Upp Upp War Pro Fac Was Fac Arm Res Tes Res Acc Com Active Infowar (turns) 17198 | . 920 1354 1069 3568 398 361 827 385 366 110 3805 297 339 31 673 738 . 1 . . . 3 2 . 2 2 . . . 722 1225 Optics 3035 | . 855 1354 823 . . . 1 . . . . . . . . . . . . . . . 2 . . . . . . . . Sensors 3279 | . 569 . 778 1932 . . . . . . . . . . . . . . . . . . . . . . . . . . . IFF 2 | . . . . . . . . . . . . . . . . . . . . . . . . . 2 . . . . . . Zeronet 1 | . . . . . . . . . . . . . . . . . . 1 . . . . . . . . . . . . . Terrain 1 | . . . . . . . . . . . . . . . . . . . . . . 1 . . . . . . . . . Structural 1947 | . . . . . . . . . . . . . . . . . . . . . . . . . . . . . . 722 1225 Seismic 1 | . . . . . . . . . . . . . . . . 1 . . . . . . . . . . . . . . . T.N.C. 12685 | . . 961 794 2600 398 361 827 385 366 110 3805 297 339 31 673 738 . . . . . . . . . . . . . . . Machine Analysis 9211 | . 351 1354 1038 3568 398 361 827 385 366 110 453 . . . . . . . . . . . . . . . . . . . . Jamming 2 | . . . . . . . . . . . . . . . . . . . . . . 2 . . . . . . . . . ECM 4 | . . . . . . . . . . . . . . . . 2 . . . . . . . . . 2 . . . . . Robot Analysis Total 104 | . . 1 . 1 . . . . . . . . . . . 100 . 2 . . . . . . . . . . . . . Derelict Logs Recovered 14 | . . . . . 2 2 . 2 . . . 1 1 . 2 . . . 1 1 . 2 . . . . . . . . . Drone Launches 15 | . . . . . . . . . 3 . 9 . . . . . . 3 . . . . . . . . . . . . . Drone Recoveries 13 | . . . . . . . . . 3 . 9 . . . . . . 1 . . . . . . . . . . . . . Exploration | -11 -10 -9 -8 -7 -7 -7 -7 -6 -6 -6 -6 -6 -6 -6 -5 -5 -5 -5 -5 -5 -5 -4 -4 -4 -4 -4 -3 -3 -2 -1 -1 ------------- Run | Yrd Mat Mat Mat Fac Low Low Zio Pro Fac Was Fac Low Low Dat Pro Fac Was Fac Upp Upp War Pro Fac Was Fac Arm Res Tes Res Acc Com Turns Passed 36935 | 33 994 1354 1114 3568 398 361 827 385 366 110 3805 297 339 31 673 1721 37 3592 255 381 2631 468 1363 76 2021 1267 1829 1429 2787 1198 1225 Spaces Moved 77266 | 33 1669 2249 1651 6983 1053 1023 1282 1030 605 326 6839 1055 1080 120 1146 4246 77 6826 935 1213 3733 1005 2133 175 4454 2763 5551 2528 6896 3539 3048 Core 3 | 3 . . . . . . . . . . . . . . . . . . . . . . . . . . . . . . . Treads . | . . . . . . . . . . . . . . . . . . . . . . . . . . . . . . . . Legs . | . . . . . . . . . . . . . . . . . . . . . . . . . . . . . . . . Wheels 45 | 30 15 . . . . . . . . . . . . . . . . . . . . . . . . . . . . . . Hover . | . . . . . . . . . . . . . . . . . . . . . . . . . . . . . . . . Flight 77218 | . 1654 2249 1651 6983 1053 1023 1282 1030 605 326 6839 1055 1080 120 1146 4246 77 6826 935 1213 3733 1005 2133 175 4454 2763 5551 2528 6896 3539 3048 Fastest Speed 21 | 50 37 34 29 29 29 29 29 29 29 29 26 26 26 26 26 26 23 23 24 24 24 42 29 29 21 21 21 21 21 21 21 Average Speed 26 | 77 37 36 30 29 29 29 29 29 29 29 27 26 26 26 26 26 26 29 24 24 31 42 41 29 21 21 21 21 21 21 21 Slowest Speed 112 | 80 80 37 34 32 29 29 29 29 29 29 112 26 26 26 26 109 102 101 24 24 109 42 42 29 29 21 21 93 94 93 93 Overloaded Moves 113 | . . . . . . . . . . . . . . . . 1 29 83 . . . . . . . . . . . . . Propulsion Burnouts . | . . . . . . . . . . . . . . . . . . . . . . . . . . . . . . . . Robots Hopped 314 | . 29 5 22 19 . . . . 2 4 17 . 2 . 2 13 . 30 . . 13 . 4 . 38 6 4 17 26 24 37 Potential Cave-ins 4 | . . . . . . . . . . . . . . . . . . . . . 4 . . . . . . . . . . Cave-ins Triggered 1 | . . . . . . . . . . . . . . . . . . . . 1 . . . . . . . . . . . Exploration Rate (%) 84 | 3 98 99 96 96 97 98 89 94 17 95 95 98 96 77 98 86 59 96 95 98 98 99 37 82 81 98 96 98 97 82 63 Regions Visited 31 Branch Regions 15 Pre-discovered Areas 15 | . . . . . . . 2 . . . 4 1 . 1 1 . . 1 . . . . . . 3 2 . . . . . Known Exits Taken 22 | . . . 1 1 1 1 1 1 . . 1 1 1 1 1 . . 1 1 1 1 1 . . 1 1 1 1 1 1 . Unknown Exits Taken 3 | 1 1 1 . . . . . . . . . . . . . . . . . . . . . . . . . . . . . Scrap Searched 44 | . . . . . 4 3 2 4 . . . 6 7 . 4 . . . 4 6 . 4 . . . . . . . . . Spaces Dug 122 | . 19 71 . 8 . . . . . . . . . . . 6 . 1 . . . . . . . 3 . 14 . . . Terrain Destroyed 1943 | . 195 497 . 419 . 2 . . . . 214 2 . . . 32 . 256 . 2 31 . 26 . 85 8 . 14 30 36 94 Melee 20 | . . . . . . . . . . . . . . . . 6 . . . . . . . . . . . 14 . . . Projectile 102 | . . . . 20 . 2 . . . . . 2 . . . . . 6 . 2 31 . . . . 4 . . 30 1 4 AOE 1821 | . 195 497 . 399 . . . . . . 214 . . . . 26 . 250 . . . . 26 . 85 4 . . . 35 90 Terrain Rammed . | . . . . . . . . . . . . . . . . . . . . . . . . . . . . . . . . Walls Destroyed . | . . . . . . . . . . . . . . . . . . . . . . . . . . . . . . . . Machines Disabled . | . . . . . . . . . . . . . . . . . . . . . . . . . . . . . . . . Actions | -11 -10 -9 -8 -7 -7 -7 -7 -6 -6 -6 -6 -6 -6 -6 -5 -5 -5 -5 -5 -5 -5 -4 -4 -4 -4 -4 -3 -3 -2 -1 -1 --------- Run | Yrd Mat Mat Mat Fac Low Low Zio Pro Fac Was Fac Low Low Dat Pro Fac Was Fac Upp Upp War Pro Fac Was Fac Arm Res Tes Res Acc Com Total 90793 | 37 1884 2537 2023 8305 1133 1083 1734 1092 786 334 8528 1069 1128 119 1491 4744 90 8171 956 1280 4986 1040 2544 190 5367 3271 6145 3238 8071 3899 3518 Wait 6611 | . 143 68 105 790 50 49 421 1 146 . 968 . 26 . 285 263 . 853 1 6 718 5 232 . 715 113 159 320 146 16 12 Move 76648 | 32 1615 2238 1610 6945 1052 1022 1281 1029 601 317 6805 1054 1075 119 1141 4220 76 6766 934 1212 3710 1004 2124 174 4381 2750 5539 2496 6849 3492 2985 Hop 267 | . 24 5 18 18 . . . . 2 4 15 . 2 . 2 13 . 29 . . 9 . 4 . 34 6 4 14 20 22 22 Pick Up 171 | . 1 4 17 9 . 2 2 1 . 2 17 . . . 2 2 1 18 1 . 13 1 5 1 10 2 5 7 26 6 16 Fast Attach 169 | 5 4 3 3 10 . . 8 . 1 1 21 . 4 . 1 12 1 8 1 . 10 3 8 . 1 13 9 21 9 6 6 Attach 36 | . . 1 4 2 . . 1 . 1 . 3 . . . . . . 4 . . 3 1 3 . 2 1 2 1 . 2 5 Detach 44 | . . . 1 . . . 5 . 1 . 7 . . . . 2 1 5 1 . 2 1 4 . 1 . 4 3 1 2 3 Swap 189 | . 9 5 7 20 . . 2 . 1 1 16 . . . 3 19 . 11 1 . 12 1 8 . 1 29 9 14 3 7 10 Drop 304 | . 3 6 18 26 . 2 7 1 1 2 30 . 4 . 2 13 2 21 1 . 23 4 8 . 10 15 13 27 31 13 21 Fire 4271 | . 78 166 136 354 19 7 5 39 13 4 414 13 12 . 40 143 5 323 14 36 329 17 107 15 161 252 249 213 642 232 233 Melee 36 | . . . . . . . . . . . 2 . . . 1 6 . . . . . . . . . . 4 23 . . . Ram 1 | . . . . . . . . . . . . . . . . . . . . . . . . . . . . 1 . . . Kick . | . . . . . . . . . . . . . . . . . . . . . . . . . . . . . . . . Crush . | . . . . . . . . . . . . . . . . . . . . . . . . . . . . . . . . Escape Stasis 195 | . . . . . . . . . 15 . 77 . . . . 15 . . . . . . 8 . . . 27 3 . . 50 Rewire . | . . . . . . . . . . . . . . . . . . . . . . . . . . . . . . . . Trap . | . . . . . . . . . . . . . . . . . . . . . . . . . . . . . . . . Miscellaneous 1851 | . 7 41 104 131 12 1 2 21 4 3 153 2 5 . 14 36 4 133 2 26 157 3 33 . 51 90 121 95 344 101 155 Route ------- -11/Scrapyard -10/Materials (discovered 6 exits: *Mat x3 / [*Min x2] / [*Sub]) -9/Materials (discovered 5 exits: *Mat x3 / [*Min] / [*Sto]) -8/Materials (discovered 3 exits: *Fac x3) -7/Factory (discovered 6 exits: *Fac x4 / *Low x2) -7/Lower Caves -7/Lower Caves (discovered 2 exits: *Fac / *Zio) -7/Zion -6/Proximity Caves -6/Factory (discovered 3 exits: Fac / Low x2) -6/Waste -6/Factory (discovered 6 exits: *Fac x4 / *Low x2) -6/Lower Caves -6/Lower Caves (discovered 2 exits: *Fac / *Dat) -6/Data Miner -5/Proximity Caves -5/Factory (discovered 6 exits: *Fac x4 / *Upp x2) -5/Waste -5/Factory (discovered 6 exits: *Fac x4 / *Upp x2) -5/Upper Caves -5/Upper Caves (discovered 2 exits: *Fac / *War) -5/Warlord -4/Proximity Caves -4/Factory (discovered 3 exits: *Res / Ext x2) -4/Waste -4/Factory (discovered 9 exits: *Res x4 / *Upp x2 / Ext x2 / *Arm) -4/Armory (discovered 2 exits: *Res x2) -3/Research (discovered 5 exits: *Res x3 / *Tes x2) -3/Testing -2/Research (discovered 5 exits: *Acc x3 / *Qua x2) -1/Access (discovered 2 exits: *Sur / *Com) -1/Command (discovered 2 exits: *Sur x2) To Epsilon Eridani History --------- Turn | Location | Event 1 | -11/Scrapyard | Upgraded with Propulsion slot (x1) 1 | -11/Scrapyard | Upgraded with Utility slot (x1) 1 | -11/Scrapyard | Upgraded with Weapon slot (x2) 18 | -11/Scrapyard | Discovered new exit (range 15) 34 | -11/Scrapyard | Entered Materials 155 | -10/Materials | Discovered new exit (range 5) 189 | -10/Materials | Discovered new exit (range 8) 268 | -10/Materials | Discovered new exit (range 5) 458 | -10/Materials | Discovered new exit (range 5) 494 | -10/Materials | Discovered new exit (range 6) 535 | -10/Materials | Build established: Gunner 542 | -10/Materials | Discovered new exit (range 17) 698 | -10/Materials | Reached level 2 698 | -10/Materials | Upgraded with Weapon slot (x1) 923 | -10/Materials | Reached level 3 974 | -10/Materials | Build established: Scavenger-Gunner 1028 | -10/Materials | Entered another Materials area 1028 | -9/Materials | Accompanied by 1 ally 1030 | -9/Materials | Reached level 4 1144 | -9/Materials | Central database locked down 1221 | -9/Materials | Reached level 5 1230 | -9/Materials | Upgraded with Utility slot (x1) 1290 | -9/Materials | Discovered new exit (range 5) 1329 | -9/Materials | Build established: Hacker-Gunner 1430 | -9/Materials | Discovered new exit (range 17) 1465 | -9/Materials | Discovered new exit (range 11) 1518 | -9/Materials | Reached level 6 1521 | -9/Materials | Upgraded with Propulsion slot (x1) 1626 | -9/Materials | Discovered new exit (range 8) 1633 | -9/Materials | Build established: Scavenger-Gunner 1671 | -9/Materials | Discovered new exit (range 15) 1822 | -9/Materials | Reached level 7 1901 | -9/Materials | Reached level 8 2163 | -9/Materials | Reached level 9 2318 | -9/Materials | Upgraded with Utility slot (x1) 2318 | -9/Materials | Upgraded with Weapon slot (x2) 2382 | -9/Materials | Entered another Materials area 2384 | -8/Materials | Reached level 10 2566 | -8/Materials | Reached level 11 2644 | -8/Materials | Destroyed 11 combat bots 2744 | -8/Materials | Reached level 12 2762 | -8/Materials | Upgraded with Utility slot (x1) 2782 | -8/Materials | First assault squad dispatched 2839 | -8/Materials | Discovered new exit (range 8) 2897 | -8/Materials | Core integrity fell below 50% 2925 | -8/Materials | Destroyed 9 combat bots 3097 | -8/Materials | Discovered new exit (range 5) 3133 | -8/Materials | Discovered new exit (range 5) 3378 | -8/Materials | Build established: Scientist-Scout 3405 | -8/Materials | Reached level 13 3424 | -8/Materials | Garrison activated, responded to threat 3495 | -8/Materials | Sterilization system engaged 3495 | -8/Materials | Non-combat units ordered to evacuate 3496 | -8/Materials | Identified exit to Factory 3496 | -8/Materials | Entered Factory 3498 | -7/Factory | Reached level 14 3503 | -7/Factory | Upgraded with Utility slot (x1) 3585 | -7/Factory | Garrison activated, responded to threat 3789 | -7/Factory | Discovered new exit (range 18) 3804 | -7/Factory | Build established: Hacker-Scout 3874 | -7/Factory | Discovered new exit (range 9) 4004 | -7/Factory | Reached level 15 4158 | -7/Factory | Fabricated Enh. Autogun? 4240 | -7/Factory | Discovered new exit (range 13) 4309 | -7/Factory | Garrison activated, responded to threat 4339 | -7/Factory | Discovered new exit (range 12) 4354 | -7/Factory | Identified exit to Lower Caves 4414 | -7/Factory | Reached level 16 4426 | -7/Factory | Discovered new exit (range 12) 4473 | -7/Factory | Identified exit to Factory 4574 | -7/Factory | Discovered exit to Factory (range 13) 4616 | -7/Factory | Destroyed 11 combat bots 4696 | -7/Factory | First assault squad dispatched 5364 | -7/Factory | Reached level 17 5384 | -7/Factory | Fabricated Kinecellerator (x2) 5663 | -7/Factory | Central database locked down 6061 | -7/Factory | Destroyed 8 combat bots 6217 | -7/Factory | Reached level 18 6260 | -7/Factory | High security lockdown imminent 6340 | -7/Factory | High security lockdown engaged 6411 | -7/Factory | Noticed a derelict Sapper rigging charges 6744 | -7/Factory | Sterilization system engaged 6744 | -7/Factory | Non-combat units ordered to evacuate 6757 | -7/Factory | Destroyed 26 combat bots 6844 | -7/Factory | Combat units ordered to evacuate 6850 | -7/Factory | Destroyed 23 combat bots 6911 | -7/Factory | Core integrity fell below 50% 6931 | -7/Factory | Destroyed 10 combat bots 7044 | -7/Factory | Ambient heat levels rising (+10) 7064 | -7/Factory | Entered Lower Caves 7064 | -7/Lower Caves | Accompanied by 1 ally 7117 | -7/Lower Caves | Reached level 19 7141 | -7/Lower Caves | Learned location of 1 exit from Research 7141 | -7/Lower Caves | Learned Extension emergency access door positions 7143 | -7/Lower Caves | Attracted the attention of an 0b10 base 7168 | -7/Lower Caves | Destroyed 14 combat bots 7177 | -7/Lower Caves | Encountered a Warlord checkpoint 7213 | -7/Lower Caves | Entered an active Warlord outpost 7213 | -7/Lower Caves | A Commander dispatched an escort 7218 | -7/Lower Caves | Learned location of 1 exit from Factory 7218 | -7/Lower Caves | Learned 8 Factory zone layouts 7218 | -7/Lower Caves | Learned Armory trap positions 7218 | -7/Lower Caves | Learned Factory security intel 7218 | -7/Lower Caves | Learned Factory garrison access intel 7267 | -7/Lower Caves | Discovered new exit (range 5) 7268 | -7/Lower Caves | Identified exit to Lower Caves 7313 | -7/Lower Caves | Learned Factory garrison access intel 7462 | -7/Lower Caves | Entered another Lower Caves area 7462 | -7/Lower Caves | Accompanied by 1 ally 7472 | -7/Lower Caves | Found DCF Scrap (13 items) 7473 | -7/Lower Caves | Discovered exit to Factory (range 6) 7595 | -7/Lower Caves | Found DRS Beacon 7604 | -7/Lower Caves | Activated DRS Beacon 7656 | -7/Lower Caves | Discovered new exit (range 5) 7659 | -7/Lower Caves | Identified exit to Zion 7823 | -7/Lower Caves | Entered Zion 7824 | -7/Zion | Identified exit to Proximity Caves 7827 | -7/Zion | Upgraded with Utility slot (x1) 7866 | -7/Zion | Gained Derelict followers 7907 | -7/Zion | Found Prototype Hackware 7907 | -7/Zion | Identified Exp. Hacking Suite 7910 | -7/Zion | Found Prototype Processor 7910 | -7/Zion | Identified Exp. Armor Integrity Analyzer 7913 | -7/Zion | Found Prototype Processor 7913 | -7/Zion | Identified Exp. Target Analyzer 7915 | -7/Zion | Found Prototype Processor 7915 | -7/Zion | Identified Exp. Terrain Scan Processor 7918 | -7/Zion | Found Prototype Processor 7918 | -7/Zion | Identified Spectral Analyzer 7920 | -7/Zion | Found Prototype Processor 7920 | -7/Zion | Identified Exp. Targeting Computer 7943 | -7/Zion | Found Prototype Device 7943 | -7/Zion | Identified Phasing AFG 7964 | -7/Zion | Learned location of Armory (-4) 7976 | -7/Zion | Given the Hacking Drone Bay 7976 | -7/Zion | Found Prototype Device 7976 | -7/Zion | Identified Hacking Drone Bay 8016 | -7/Zion | Received a visual enhancement algorithm 8017 | -7/Zion | Ran a visual enhancement algorithm 8556 | -7/Zion | Met Imprinter 8650 | -7/Zion | Entered Proximity Caves 8684 | -6/Proximity Caves | Attracted the attention of an 0b10 outpost 8741 | -6/Proximity Caves | Destroyed 10 combat bots 8770 | -6/Proximity Caves | Learned Factory stockpile data 8792 | -6/Proximity Caves | Discovered exit to Factory (range 15) 8862 | -6/Proximity Caves | Ambushed by research squad 8885 | -6/Proximity Caves | Spotted B-75 Beast 8899 | -6/Proximity Caves | Destroyed B-75 Beast 8920 | -6/Proximity Caves | Destroyed 7 combat bots 8935 | -6/Proximity Caves | Learned Factory emergency access door positions 8947 | -6/Proximity Caves | Reached level 20 8951 | -6/Proximity Caves | Upgraded with Utility slot (x1) 9004 | -6/Proximity Caves | Attracted the attention of an 0b10 checkpoint 9035 | -6/Proximity Caves | Entered Factory 9036 | -6/Factory | Identified exit to Lower Caves 9037 | -6/Factory | Identified exit to Factory 9041 | -6/Factory | Loaded intel: 4 garrison access locations 9258 | -6/Factory | Unchained authorized (6S-H0T) 9401 | -6/Factory | Sucked down chute 9401 | -6/Factory | Entered Waste 9401 | -6/Waste | The area was eerily silent 9430 | -6/Waste | Discovered new exit (range 14) 9511 | -6/Waste | Identified exit to Factory 9511 | -6/Waste | Entered Factory 9512 | -6/Factory | Loaded intel: 4 garrison access locations 9543 | -6/Factory | Identified exit to DSF 9548 | -6/Factory | Discovered exit to Factory (range 15) 9667 | -6/Factory | Unchained authorized (6S-H0T) 10032 | -6/Factory | Reached level 21 10133 | -6/Factory | Upgraded with Propulsion slot (x1) 10714 | -6/Factory | Spotted B-75 Beast 10724 | -6/Factory | Destroyed B-75 Beast 10822 | -6/Factory | Garrison activated, responded to threat 10988 | -6/Factory | Found Exp. Targeting Computer 11040 | -6/Factory | Destroyed 6S-H0T 11052 | -6/Factory | Found Prototype Ballistic Gun 11052 | -6/Factory | Identified 6S-H0T's Six Shooter 11276 | -6/Factory | Unchained authorized (QV-33N) 11491 | -6/Factory | Destroyed QV-33N 11498 | -6/Factory | Found Prototype Device 11498 | -6/Factory | Identified QV-33N's Drone Shield 11524 | -6/Factory | Found Prototype Device 11524 | -6/Factory | Identified Exp. Phase Shifter 11532 | -6/Factory | Found Prototype Protection 11532 | -6/Factory | Identified Centrium Heavy Armor Plating 11629 | -6/Factory | Central database locked down 11665 | -6/Factory | Reached level 22 11836 | -6/Factory | Build established: Scavenger-Scout 12311 | -6/Factory | First assault squad dispatched 12815 | -6/Factory | High security lockdown imminent 12836 | -6/Factory | Destroyed 9 combat bots 12895 | -6/Factory | High security lockdown engaged 13010 | -6/Factory | Destroyed 10 combat bots 13057 | -6/Factory | Sterilization system engaged 13057 | -6/Factory | Non-combat units ordered to evacuate 13155 | -6/Factory | Destroyed 25 combat bots 13157 | -6/Factory | Combat units ordered to evacuate 13316 | -6/Factory | Entered Lower Caves 13349 | -6/Lower Caves | Entered an active Warlord outpost 13350 | -6/Lower Caves | A Commander dispatched an escort 13353 | -6/Lower Caves | Learned 8 Factory zone layouts 13353 | -6/Lower Caves | Learned Factory trap positions 13353 | -6/Lower Caves | Learned Factory stockpile data 13397 | -6/Lower Caves | Encountered a Warlord checkpoint 13461 | -6/Lower Caves | Discovered new exit (range 7) 13462 | -6/Lower Caves | Identified exit to Lower Caves 13510 | -6/Lower Caves | Attacked by a delusional Derelict stockpiling Unaware 13613 | -6/Lower Caves | Entered another Lower Caves area 13658 | -6/Lower Caves | Encountered a Warlord checkpoint 13716 | -6/Lower Caves | Spotted B-75 Beast 13720 | -6/Lower Caves | Destroyed B-75 Beast 13771 | -6/Lower Caves | Found Prototype Device 13771 | -6/Lower Caves | Identified Heart of Steel 13827 | -6/Lower Caves | Discovered new exit (range 6) 13828 | -6/Lower Caves | Identified exit to Data Miner 13952 | -6/Lower Caves | Entered Data Miner 13952 | -6/Data Miner | Discovered new exit (range 6) 13954 | -6/Data Miner | Identified exit to Proximity Caves 13958 | -6/Data Miner | Met Data Miner 13970 | -6/Data Miner | Learned location of Section 7 (-2) 13970 | -6/Data Miner | Acquired the access code to Warlord's prototype stash 13973 | -6/Data Miner | Received God Mode back door access code from Data Miner 13983 | -6/Data Miner | Entered Proximity Caves 13985 | -5/Proximity Caves | Reached level 23 13986 | -5/Proximity Caves | Spotter reported a threat 13999 | -5/Proximity Caves | Attracted the attention of an 0b10 checkpoint 14193 | -5/Proximity Caves | Destroyed 18 combat bots 14247 | -5/Proximity Caves | Found Alien Artifact 14247 | -5/Proximity Caves | Identified Dimensional Node Initializer 14247 | -5/Proximity Caves | Initialized slip node 14656 | -5/Proximity Caves | Entered Factory 14657 | -5/Factory | Identified exit to Factory 14657 | -5/Factory | Identified exit to Upper Caves 14659 | -5/Factory | Loaded intel: 113 trap records 14676 | -5/Factory | Upgraded with Utility slot (x1) 14860 | -5/Factory | Unchained authorized (CL-0N3) 14875 | -5/Factory | Reached level 24 14943 | -5/Factory | R-10 Processor reconstituted as Martyr 14944 | -5/Factory | Martyr reconstituted as CL-0N3 14954 | -5/Factory | Destroyed CL-0N3 14956 | -5/Factory | Extracted schematics, analyses from CL-0N3's data core 14967 | -5/Factory | Discovered exit to Factory (range 12) 15197 | -5/Factory | Discovered exit to Factory (range 8) 15254 | -5/Factory | Destroyed 8 combat bots 15399 | -5/Factory | Destroyed 12 combat bots 15415 | -5/Factory | Build established: Hacker-Scout 15863 | -5/Factory | Garrison activated, responded to threat 15890 | -5/Factory | Destroyed 9 combat bots 15927 | -5/Factory | Garrison activated, responded to threat 15929 | -5/Factory | Cargo convoy interrupted 15973 | -5/Factory | Core integrity fell below 50% 16026 | -5/Factory | Found Exp. Hacking Suite 16041 | -5/Factory | Destroyed 14 combat bots 16156 | -5/Factory | First assault squad dispatched 16330 | -5/Factory | Reached level 25 16331 | -5/Factory | Build established: Wizard-Scout 16377 | -5/Factory | Sucked down chute 16377 | -5/Factory | Entered Waste 16378 | -5/Waste | Spotted C-40 Crusher 16382 | -5/Waste | Destroyed C-40 Crusher 16384 | -5/Waste | Spotted C-40 Crusher 16385 | -5/Waste | Destroyed C-40 Crusher 16391 | -5/Waste | Spotted C-40 Crusher 16392 | -5/Waste | EMP discharged 16393 | -5/Waste | Destroyed C-40 Crusher 16407 | -5/Waste | Spotted C-40 Crusher 16410 | -5/Waste | Discovered new exit (range 18) 16413 | -5/Waste | Identified exit to Factory 16414 | -5/Waste | Entered Factory 16459 | -5/Factory | Garrison activated, responded to threat 16647 | -5/Factory | Destroyed 9 combat bots 16653 | -5/Factory | Discovered exit to Factory (range 14) 16760 | -5/Factory | Discovered exit to Factory (range 18) 16808 | -5/Factory | Discovered exit to Factory (range 9) 16831 | -5/Factory | Discovered exit to Factory (range 10) 16861 | -5/Factory | Discovered exit to Upper Caves (range 18) 17179 | -5/Factory | Destroyed 7 combat bots 17315 | -5/Factory | Spotted B-75 Beast 17319 | -5/Factory | Destroyed B-75 Beast 17501 | -5/Factory | Unchained authorized (DW-4LL) 17629 | -5/Factory | DW-4LL burst out of a wall 17636 | -5/Factory | Destroyed DW-4LL 17892 | -5/Factory | Unchained authorized (GL-D0S) 18153 | -5/Factory | Fabricated M-36 Artificer (x1) 18214 | -5/Factory | First assault squad dispatched 18255 | -5/Factory | Garrison activated, responded to threat 18350 | -5/Factory | Destroyed GL-D0S 18359 | -5/Factory | Found Prototype Device 18359 | -5/Factory | Identified Zeronet Interface 18406 | -5/Factory | Reached level 26 18421 | -5/Factory | Upgraded with Utility slot (x1) 18527 | -5/Factory | Destroyed 15 combat bots 19324 | -5/Factory | Build established: Wizard-Executioner 19649 | -5/Factory | Fabricated Cld. Plasma Cannon (x1) 19681 | -5/Factory | Sterilization system engaged 19681 | -5/Factory | Non-combat units ordered to evacuate 19741 | -5/Factory | Build established: Wizard-Scout 19781 | -5/Factory | Combat units ordered to evacuate 19811 | -5/Factory | Destroyed 22 combat bots 19981 | -5/Factory | Ambient heat levels rising (+10) 20006 | -5/Factory | Entered Upper Caves 20030 | -5/Upper Caves | Learned 4 Factory zone layouts 20071 | -5/Upper Caves | Attracted the attention of an 0b10 checkpoint 20153 | -5/Upper Caves | Discovered new exit (range 10) 20155 | -5/Upper Caves | Identified exit to Upper Caves 20261 | -5/Upper Caves | Entered another Upper Caves area 20261 | -5/Upper Caves | Discovered exit to Factory (range 11) 20262 | -5/Upper Caves | Identified exit to Warlord 20273 | -5/Upper Caves | Entered an active Warlord outpost 20276 | -5/Upper Caves | Learned Factory terminal intel 20276 | -5/Upper Caves | Learned Extension terminal intel 20322 | -5/Upper Caves | Attracted the attention of an 0b10 checkpoint 20367 | -5/Upper Caves | Learned Factory terminal intel 20373 | -5/Upper Caves | Attracted the attention of an 0b10 outpost 20423 | -5/Upper Caves | Destroyed 9 combat bots 20479 | -5/Upper Caves | Crushed by falling debris 20642 | -5/Upper Caves | Entered Warlord 20654 | -5/Warlord | Discovered new exit (range 9) 20656 | -5/Warlord | Identified exit to Proximity Caves 20708 | -5/Warlord | Opened side exit 20752 | -5/Warlord | Warlord's base attacked by MAIN.C 20815 | -5/Warlord | Met Warlord 20883 | -5/Warlord | Spotted B-86 Titan 20890 | -5/Warlord | Destroyed B-86 Titan 20941 | -5/Warlord | Destroyed 15 combat bots 21077 | -5/Warlord | Spotted B-86 Titan 21087 | -5/Warlord | Destroyed B-86 Titan 21102 | -5/Warlord | Warlord forces counterattacked 21119 | -5/Warlord | Spotted Executioner 21122 | -5/Warlord | Destroyed Executioner 21138 | -5/Warlord | Spotted Executioner 21141 | -5/Warlord | Destroyed Executioner 21151 | -5/Warlord | Found Prototype Processor 21152 | -5/Warlord | Identified Exp. Core Analyzer 21153 | -5/Warlord | Spotted Striker 21162 | -5/Warlord | Destroyed 30 combat bots 21172 | -5/Warlord | Destroyed Striker 21199 | -5/Warlord | Reached level 27 21226 | -5/Warlord | Destroyed 10 combat bots 21232 | -5/Warlord | Lost 5 allies 21257 | -5/Warlord | Spotted Striker 21257 | -5/Warlord | Spotted Striker 21269 | -5/Warlord | Destroyed Striker 21301 | -5/Warlord | Destroyed 12 combat bots 21305 | -5/Warlord | Lost 3 allies 21360 | -5/Warlord | Spotted Striker 21361 | -5/Warlord | Spotted Striker 21366 | -5/Warlord | Destroyed Striker 21367 | -5/Warlord | Destroyed Striker 21373 | -5/Warlord | Spotted Executioner 21373 | -5/Warlord | Destroyed Executioner 21394 | -5/Warlord | Destroyed 8 combat bots 21403 | -5/Warlord | Lost 13 allies 21427 | -5/Warlord | Warlord base infiltrated, sounded retreat 21440 | -5/Warlord | Build established: Hacker-Scout 21489 | -5/Warlord | Spotted Striker 21492 | -5/Warlord | Destroyed Striker 21494 | -5/Warlord | Spotted Striker 21502 | -5/Warlord | Destroyed Striker 21555 | -5/Warlord | Spotted B-75 Beast 21561 | -5/Warlord | Spotted Striker 21561 | -5/Warlord | Spotted B-86 Titan 21561 | -5/Warlord | Destroyed B-75 Beast 21563 | -5/Warlord | Destroyed Striker 21574 | -5/Warlord | Destroyed B-86 Titan 21607 | -5/Warlord | Destroyed 12 combat bots 21642 | -5/Warlord | Opened Warlord's prototype stash 21644 | -5/Warlord | Found Prototype Device 21644 | -5/Warlord | Identified Exp. Focal Shield 21647 | -5/Warlord | Found Prototype Hackware 21647 | -5/Warlord | Identified Ghost Barrier 21653 | -5/Warlord | Upgraded with Power slot (x1) 21654 | -5/Warlord | Found Prototype Reactor 21654 | -5/Warlord | Identified Vortex Chain Reactor 21671 | -5/Warlord | Found Exp. Phase Shifter 21685 | -5/Warlord | Spotted Executioner 21729 | -5/Warlord | Destroyed Executioner 21796 | -5/Warlord | Spotted Striker 21821 | -5/Warlord | Destroyed 20 combat bots 21850 | -5/Warlord | Spotted Striker 21853 | -5/Warlord | Destroyed Striker 21860 | -5/Warlord | Spotted Executioner 21862 | -5/Warlord | Destroyed Executioner 21908 | -5/Warlord | Destroyed 31 combat bots 21917 | -5/Warlord | Found Prototype Device 21917 | -5/Warlord | Identified Exp. Thermal Shield 21921 | -5/Warlord | Found Prototype Processor 21921 | -5/Warlord | Identified Exp. Melee Analysis Suite 21940 | -5/Warlord | Spotted Striker 21943 | -5/Warlord | Build established: Wizard-Scout 21948 | -5/Warlord | Destroyed Striker 21955 | -5/Warlord | Spotted Executioner 21959 | -5/Warlord | Destroyed Executioner 21982 | -5/Warlord | Destroyed 10 combat bots 22087 | -5/Warlord | Spotted Striker 22087 | -5/Warlord | Destroyed Striker 22096 | -5/Warlord | Spotted Executioner 22118 | -5/Warlord | Spotted Striker 22120 | -5/Warlord | Destroyed Striker 22128 | -5/Warlord | Spotted Striker 22132 | -5/Warlord | Spotted Executioner 22144 | -5/Warlord | Spotted Executioner 22155 | -5/Warlord | Destroyed Executioner 22163 | -5/Warlord | Destroyed Executioner 22184 | -5/Warlord | Destroyed 19 combat bots 22204 | -5/Warlord | Destroyed Executioner 22204 | -5/Warlord | Destroyed Striker 22332 | -5/Warlord | Destroyed 27 combat bots 22376 | -5/Warlord | Spotted Striker 22377 | -5/Warlord | Spotted Striker 22377 | -5/Warlord | Spotted Executioner 22396 | -5/Warlord | Destroyed 13 combat bots 22396 | -5/Warlord | Destroyed Striker 22399 | -5/Warlord | Spotted Executioner 22400 | -5/Warlord | Destroyed Executioner 22431 | -5/Warlord | Destroyed Executioner 22434 | -5/Warlord | Destroyed Striker 22491 | -5/Warlord | Destroyed 19 combat bots 23273 | -5/Warlord | Entered Proximity Caves 23417 | -4/Proximity Caves | Learned Research non-interactive machine intel 23430 | -4/Proximity Caves | Discovered exit to Factory (range 10) 23543 | -4/Proximity Caves | Learned 4 Research zone layouts 23741 | -4/Proximity Caves | Entered Factory 23742 | -4/Factory | Identified exit to Extension 23743 | -4/Factory | Reached level 28 23744 | -4/Factory | Loaded intel: 28 terminal locations 23782 | -4/Factory | Found Prototype Processor 23785 | -4/Factory | Identified Exp. Signal Interpreter 23797 | -4/Factory | Discovered new exit (range 4) 23798 | -4/Factory | Identified exit to Research 24052 | -4/Factory | Destroyed 8 combat bots 24151 | -4/Factory | Destroyed 7 combat bots 24191 | -4/Factory | Fabricated Diametric Drive? 24233 | -4/Factory | Fabricated Graphene Brace? 24269 | -4/Factory | Destroyed 8 combat bots 24741 | -4/Factory | First assault squad dispatched 24900 | -4/Factory | Fabricated Diametric Drive (x1) 25090 | -4/Factory | Fabricated Diametric Drive (x1) 25104 | -4/Factory | Sucked down chute 25104 | -4/Factory | Entered Waste 25110 | -4/Waste | Spotted C-40 Crusher 25112 | -4/Waste | Spotted C-40 Crusher 25115 | -4/Waste | Spotted C-40 Crusher 25117 | -4/Waste | Spotted C-40 Crusher 25119 | -4/Waste | Spotted C-40 Crusher 25121 | -4/Waste | Destroyed C-40 Crusher 25122 | -4/Waste | Spotted C-40 Crusher 25127 | -4/Waste | Destroyed C-40 Crusher 25129 | -4/Waste | Destroyed C-40 Crusher 25133 | -4/Waste | Destroyed C-40 Crusher 25137 | -4/Waste | Destroyed C-40 Crusher 25143 | -4/Waste | Destroyed C-40 Crusher 25164 | -4/Waste | Discovered new exit (range 17) 25180 | -4/Waste | Identified exit to Factory 25180 | -4/Waste | Entered Factory 25182 | -4/Factory | Loaded intel: 27 terminal locations 25208 | -4/Factory | Discovered new exit (range 11) 25211 | -4/Factory | Identified exit to Upper Caves 25373 | -4/Factory | Fabricated Diametric Drive (x1) 25620 | -4/Factory | Fabricated Diametric Drive? 25835 | -4/Factory | Discovered exit to Research (range 18) 25912 | -4/Factory | Garrison activated, responded to threat 25933 | -4/Factory | Discovered exit to Upper Caves (range 5) 25949 | -4/Factory | Garrison activated, responded to threat 25988 | -4/Factory | Destroyed 10 combat bots 26118 | -4/Factory | Discovered exit to Research (range 18) 26181 | -4/Factory | Discovered exit to Research (range 6) 26217 | -4/Factory | Discovered new exit (range 12) 26233 | -4/Factory | Identified exit to Armory 26251 | -4/Factory | Destroyed 7 combat bots 26302 | -4/Factory | Reached level 29 26349 | -4/Factory | Spotted B-86 Titan 26374 | -4/Factory | Destroyed B-86 Titan 26501 | -4/Factory | Destroyed 14 combat bots 26680 | -4/Factory | First assault squad dispatched 26910 | -4/Factory | Fabricated Cld. Plasma Cannon? 26926 | -4/Factory | Destroyed 8 combat bots 27094 | -4/Factory | Fabricated Adv. Particle Charger (x2) 27201 | -4/Factory | Entered Armory 27201 | -4/Armory | Accompanied by 2 allies 27202 | -4/Armory | Loaded intel: 33 trap records 27588 | -4/Armory | Destroyed 7 combat bots 27592 | -4/Armory | Spotted B-86 Titan 27631 | -4/Armory | Breached Obliterator storage 27655 | -4/Armory | Spotted Armor Guard 27655 | -4/Armory | Spotted Armor Guard 27675 | -4/Armory | Destroyed Armor Guard 27691 | -4/Armory | Destroyed Armor Guard 27701 | -4/Armory | Spotted Armor Guard 27701 | -4/Armory | Spotted Armor Guard 27732 | -4/Armory | Destroyed Armor Guard 27735 | -4/Armory | Destroyed Armor Guard 27756 | -4/Armory | Destroyed 7 combat bots 27803 | -4/Armory | Destroyed 9 combat bots 27816 | -4/Armory | Found Prototype Device 27816 | -4/Armory | Identified Exp. ECM Suite 27949 | -4/Armory | Destroyed 11 combat bots 28017 | -4/Armory | High security lockdown imminent 28097 | -4/Armory | High security lockdown engaged 28128 | -4/Armory | Reached level 30 28131 | -4/Armory | Upgraded with Weapon slot (x1) 28246 | -4/Armory | Sterilization system engaged 28246 | -4/Armory | Non-combat units ordered to evacuate 28346 | -4/Armory | Combat units ordered to evacuate 28387 | -4/Armory | Destroyed 91 combat bots 28388 | -4/Armory | Destroyed B-86 Titan 28468 | -4/Armory | Entered Research 28469 | -3/Research | Identified exit to Testing 28471 | -3/Research | Loaded intel: 74 non-interactive machine locations 28484 | -3/Research | Discovered exit to Testing (range 12) 28576 | -3/Research | Fabricated Enh. Autogun? 28707 | -3/Research | High security lockdown imminent 28787 | -3/Research | High security lockdown engaged 28855 | -3/Research | Destroyed 8 combat bots 28951 | -3/Research | Reached level 31 29022 | -3/Research | Scanned by Researcher 29022 | -3/Research | Destroyed Investigator 29078 | -3/Research | Spotted Striker 29078 | -3/Research | Spotted Executioner 29079 | -3/Research | Destroyed Striker 29118 | -3/Research | Destroyed Executioner 29140 | -3/Research | Build established: Hacker-Scout 29197 | -3/Research | Destroyed 67 combat bots 29254 | -3/Research | Destroyed 9 combat bots 29259 | -3/Research | Spotted B-86 Titan 29260 | -3/Research | Destroyed B-86 Titan 29368 | -3/Research | Destroyed 13 combat bots 29442 | -3/Research | Spotted Striker 29442 | -3/Research | Destroyed Striker 29449 | -3/Research | Spotted Striker 29456 | -3/Research | Destroyed Striker 29487 | -3/Research | Spotted Striker 29501 | -3/Research | Destroyed Striker 29506 | -3/Research | Sterilization system engaged 29506 | -3/Research | Non-combat units ordered to evacuate 29507 | -3/Research | Core integrity fell below 50% 29540 | -3/Research | Spotted Executioner 29546 | -3/Research | Spotted Striker 29550 | -3/Research | Destroyed Executioner 29551 | -3/Research | Core integrity fell below 20% 29564 | -3/Research | Destroyed Striker 29570 | -3/Research | Reached level 32 29592 | -3/Research | Destroyed 43 combat bots 29606 | -3/Research | Combat units ordered to evacuate 29641 | -3/Research | Destroyed 8 combat bots 29710 | -3/Research | Discovered new exit (range 8) 29711 | -3/Research | Identified exit to Research 29806 | -3/Research | Ambient heat levels rising (+10) 29826 | -3/Research | Discovered exit to Research (range 14) 29956 | -3/Research | Ambient heat levels rising (+10) 30064 | -3/Research | Discovered exit to Research (range 10) 30106 | -3/Research | Ambient heat levels rising (+10) 30256 | -3/Research | Ambient heat levels rising (+10) 30297 | -3/Research | Entered Testing 30338 | -3/Testing | Garrison activated, responded to threat 30359 | -3/Testing | Spotted PP-3ZTTWRS1TG 30547 | -3/Testing | First assault squad dispatched 30621 | -3/Testing | Protovariant out of control (PP-3ZTTWRS1TG) 30621 | -3/Testing | Unleashed a protovariant (PP-3ZTTWRS1TG) 30656 | -3/Testing | Found Prototype Device 30656 | -3/Testing | Identified Adv. Kinecellerator 30757 | -3/Testing | Discovered exit to Research (range 9) 30792 | -3/Testing | Spotted Investigator 30824 | -3/Testing | Found Prototype Energy Cannon 30824 | -3/Testing | Identified Hpw. Disruptor Cannon 30832 | -3/Testing | High security lockdown imminent 30832 | -3/Testing | Destroyed Investigator 30870 | -3/Testing | Fabricated Enh. Autogun? 30912 | -3/Testing | High security lockdown engaged 31094 | -3/Testing | Found Prototype Device 31094 | -3/Testing | Identified Exp. Thermal Defense Suite 31106 | -3/Testing | Destroyed 50 combat bots 31109 | -3/Testing | Spotted Striker 31109 | -3/Testing | Spotted Striker 31115 | -3/Testing | Destroyed Striker 31115 | -3/Testing | Destroyed Striker 31117 | -3/Testing | Spotted Alpha 7 31125 | -3/Testing | Destroyed Alpha 7 31168 | -3/Testing | Found Prototype Launcher 31168 | -3/Testing | Identified Containment Facilitator 31170 | -3/Testing | Destroyed 12 combat bots 31179 | -3/Testing | Spotted Investigator 31180 | -3/Testing | Destroyed Investigator 31262 | -3/Testing | Spotted Striker 31278 | -3/Testing | Destroyed Striker 31324 | -3/Testing | Destroyed 24 combat bots 31332 | -3/Testing | Found Prototype Energy Cannon 31332 | -3/Testing | Identified Imp. Potential Cannon 31334 | -3/Testing | Found Prototype Energy Cannon 31334 | -3/Testing | Identified Potential Cannon 31371 | -3/Testing | Found Prototype Energy Gun 31371 | -3/Testing | Identified Hyp. EM Gauss Rifle 31385 | -3/Testing | Found Prototype Energy Cannon 31385 | -3/Testing | Identified Disintegrator 31462 | -3/Testing | Spotted Investigator 31477 | -3/Testing | Destroyed Investigator 31560 | -3/Testing | Sterilization system engaged 31560 | -3/Testing | Non-combat units ordered to evacuate 31590 | -3/Testing | Reached level 33 31618 | -3/Testing | Destroyed 42 combat bots 31660 | -3/Testing | Combat units ordered to evacuate 31677 | -3/Testing | Stole the SGEMP Prototype 31726 | -3/Testing | Entered Research 31726 | -2/Research | Warlord forces began assault on 0b10 31778 | -2/Research | Fabricated Enh. Autogun (x1) 31796 | -2/Research | High security lockdown imminent 31836 | -2/Research | Research machine network offline 31861 | -2/Research | Met up with Warlord 31874 | -2/Research | Destroyed 14 combat bots 31876 | -2/Research | High security lockdown engaged 31982 | -2/Research | Discovered new exit (range 9) 31982 | -2/Research | Spotted B-90 Cyclops 31985 | -2/Research | Identified exit to Quarantine 31995 | -2/Research | Discovered new exit (range 8) 32009 | -2/Research | Identified exit to Access 32022 | -2/Research | Borebot progress halted 32034 | -2/Research | Spotted B-90 Cyclops 32037 | -2/Research | Destroyed B-90 Cyclops 32062 | -2/Research | Destroyed 15 combat bots 32137 | -2/Research | Spotted Executioner 32140 | -2/Research | Spotted Executioner 32140 | -2/Research | Destroyed Executioner 32142 | -2/Research | Destroyed Executioner 32149 | -2/Research | Reached level 34 32153 | -2/Research | Spotted Striker 32161 | -2/Research | Destroyed Striker 32182 | -2/Research | Destroyed 7 combat bots 32193 | -2/Research | Spotted Executioner 32197 | -2/Research | Spotted Executioner 32198 | -2/Research | Destroyed Executioner 32202 | -2/Research | Destroyed Executioner 32248 | -2/Research | Spotted Striker 32249 | -2/Research | Spotted Executioner 32249 | -2/Research | Destroyed Striker 32251 | -2/Research | Destroyed Executioner 32292 | -2/Research | Destroyed 16 combat bots 32307 | -2/Research | Spotted Striker 32310 | -2/Research | Spotted Executioner 32310 | -2/Research | Destroyed Executioner 32311 | -2/Research | Spotted Striker 32327 | -2/Research | Destroyed Striker 32330 | -2/Research | Destroyed Striker 32380 | -2/Research | Spotted Executioner 32380 | -2/Research | Destroyed Executioner 32382 | -2/Research | Spotted Executioner 32382 | -2/Research | Destroyed Executioner 32408 | -2/Research | Destroyed 18 combat bots 32452 | -2/Research | Spotted Executioner 32455 | -2/Research | Destroyed Executioner 32461 | -2/Research | Spotted Executioner 32464 | -2/Research | Destroyed Executioner 32469 | -2/Research | Borebot progress halted 32481 | -2/Research | Spotted Executioner 32481 | -2/Research | Spotted Striker 32485 | -2/Research | Destroyed Striker 32488 | -2/Research | Destroyed Executioner 32497 | -2/Research | Borebot progress halted 32511 | -2/Research | Destroyed Executioner 32512 | -2/Research | Destroyed Investigator 32564 | -2/Research | Destroyed 19 combat bots 32584 | -2/Research | Spotted Executioner 32585 | -2/Research | Destroyed Executioner 32586 | -2/Research | Spotted Striker 32589 | -2/Research | Destroyed Striker 32599 | -2/Research | Spotted Striker 32608 | -2/Research | Destroyed Striker 32633 | -2/Research | Destroyed 12 combat bots 32663 | -2/Research | Discovered exit to Quarantine (range 9) 32688 | -2/Research | Spotted Striker 32691 | -2/Research | Spotted Striker 32704 | -2/Research | Destroyed Striker 32704 | -2/Research | Destroyed Striker 32713 | -2/Research | Spotted Striker 32717 | -2/Research | Reached level 35 32719 | -2/Research | Core integrity fell below 50% 32753 | -2/Research | Destroyed 42 combat bots 32757 | -2/Research | Spotted Striker 32759 | -2/Research | Spotted Striker 32759 | -2/Research | Destroyed Striker 32761 | -2/Research | Destroyed Striker 32822 | -2/Research | Spotted B-90 Cyclops 32827 | -2/Research | Destroyed B-90 Cyclops 32845 | -2/Research | Discovered exit to Access (range 8) 32899 | -2/Research | Spotted Striker 32899 | -2/Research | Spotted Executioner 32902 | -2/Research | Spotted Striker 32902 | -2/Research | Spotted Executioner 32904 | -2/Research | Discovered exit to Access (range 17) 32907 | -2/Research | Destroyed Executioner 32911 | -2/Research | Destroyed Executioner 32914 | -2/Research | Destroyed Striker 32919 | -2/Research | Destroyed Striker 32940 | -2/Research | Destroyed 52 combat bots 32997 | -2/Research | Spotted Executioner 32997 | -2/Research | Destroyed Executioner 33044 | -2/Research | Spotted Striker 33046 | -2/Research | Destroyed Striker 33112 | -2/Research | Spotted Striker 33112 | -2/Research | Destroyed Striker 33133 | -2/Research | Spotted Executioner 33136 | -2/Research | Destroyed Executioner 33150 | -2/Research | Spotted Executioner 33150 | -2/Research | Spotted Striker 33150 | -2/Research | Spotted Executioner 33151 | -2/Research | Destroyed Executioner 33155 | -2/Research | Spotted PT-NF0(L) 33157 | -2/Research | Destroyed Executioner 33170 | -2/Research | Destroyed PT-NF0(L) 33173 | -2/Research | Spotted 9M-9Y3(L) 33179 | -2/Research | Destroyed 9M-9Y3(L) 33206 | -2/Research | Spotted Striker 33209 | -2/Research | Destroyed Striker 33216 | -2/Research | Spotted Striker 33221 | -2/Research | Destroyed Striker 33229 | -2/Research | Given Cave Seal Controls access code 33233 | -2/Research | Spotted Striker 33236 | -2/Research | Destroyed Striker 33277 | -2/Research | Destroyed 42 combat bots 33297 | -2/Research | Spotted Striker 33297 | -2/Research | Spotted Executioner 33298 | -2/Research | Spotted Executioner 33303 | -2/Research | Destroyed Executioner 33304 | -2/Research | Destroyed Executioner 33305 | -2/Research | Spotted Executioner 33308 | -2/Research | Destroyed Executioner 33312 | -2/Research | Spotted Striker 33320 | -2/Research | Spotted Striker 33326 | -2/Research | Destroyed Striker 33334 | -2/Research | Spotted Executioner 33334 | -2/Research | Spotted Executioner 33334 | -2/Research | Spotted Executioner 33337 | -2/Research | Core integrity fell below 20% 33339 | -2/Research | Spotted Executioner 33349 | -2/Research | Spotted Executioner 33357 | -2/Research | Destroyed Executioner 33394 | -2/Research | Destroyed 20 combat bots 33420 | -2/Research | Destroyed Executioner 33455 | -2/Research | Destroyed Executioner 33463 | -2/Research | Destroyed Executioner 33464 | -2/Research | Destroyed Striker 33485 | -2/Research | Destroyed 13 combat bots 33513 | -2/Research | Destroyed Executioner 33534 | -2/Research | Destroyed 9 combat bots 33544 | -2/Research | Spotted Striker 33549 | -2/Research | Destroyed Striker 33575 | -2/Research | Spotted Striker 33578 | -2/Research | Destroyed Striker 33656 | -2/Research | Spotted Executioner 33657 | -2/Research | Spotted Executioner 33657 | -2/Research | Spotted Executioner 33663 | -2/Research | Destroyed Executioner 33690 | -2/Research | Spotted Executioner 33690 | -2/Research | Spotted Executioner 33690 | -2/Research | Spotted Striker 33691 | -2/Research | Spotted Executioner 33692 | -2/Research | Spotted Striker 33693 | -2/Research | Spotted Executioner 33693 | -2/Research | Spotted Striker 33696 | -2/Research | Spotted Striker 33696 | -2/Research | Spotted Executioner 33706 | -2/Research | Destroyed Striker 33706 | -2/Research | Reached level 36 33710 | -2/Research | Destroyed Striker 33710 | -2/Research | Destroyed Striker 33715 | -2/Research | Destroyed Striker 33728 | -2/Research | Destroyed Executioner 33746 | -2/Research | Destroyed Executioner 33747 | -2/Research | Destroyed Executioner 33749 | -2/Research | Destroyed Executioner 33750 | -2/Research | Destroyed Executioner 33753 | -2/Research | Destroyed Executioner 33757 | -2/Research | Destroyed Executioner 33761 | -2/Research | Spotted Striker 33769 | -2/Research | Destroyed Striker 33798 | -2/Research | Spotted Striker 33798 | -2/Research | Destroyed Striker 33878 | -2/Research | Spotted Striker 33881 | -2/Research | Destroyed Striker 33906 | -2/Research | Spotted Executioner 33909 | -2/Research | Destroyed Executioner 33918 | -2/Research | Found Exp. Core Analyzer 33943 | -2/Research | Spotted Striker 33946 | -2/Research | Destroyed Striker 33972 | -2/Research | Destroyed 88 combat bots 33972 | -2/Research | Spotted Executioner 33972 | -2/Research | Spotted Executioner 33973 | -2/Research | Destroyed Executioner 33980 | -2/Research | Destroyed Executioner 34024 | -2/Research | Spotted Executioner 34026 | -2/Research | Spotted Executioner 34026 | -2/Research | Destroyed Executioner 34029 | -2/Research | Destroyed Executioner 34034 | -2/Research | Spotted Striker 34038 | -2/Research | Destroyed Striker 34114 | -2/Research | Spotted Striker 34118 | -2/Research | Destroyed Striker 34135 | -2/Research | Spotted Executioner 34135 | -2/Research | Spotted Striker 34137 | -2/Research | Destroyed Executioner 34144 | -2/Research | Spotted Striker 34151 | -2/Research | Destroyed Striker 34155 | -2/Research | Destroyed Striker 34161 | -2/Research | Spotted Striker 34185 | -2/Research | Destroyed Striker 34193 | -2/Research | Spotted Striker 34198 | -2/Research | Spotted Executioner 34198 | -2/Research | Spotted Striker 34209 | -2/Research | Destroyed Executioner 34219 | -2/Research | Destroyed Striker 34220 | -2/Research | Spotted Striker 34220 | -2/Research | Spotted Executioner 34220 | -2/Research | Destroyed Executioner 34227 | -2/Research | Destroyed Striker 34231 | -2/Research | Lost 5 allies 34281 | -2/Research | Destroyed 54 combat bots 34282 | -2/Research | Spotted Executioner 34282 | -2/Research | Spotted Executioner 34283 | -2/Research | Found Exp. Core Analyzer 34285 | -2/Research | Destroyed Executioner 34289 | -2/Research | Destroyed Executioner 34342 | -2/Research | Spotted Executioner 34344 | -2/Research | Destroyed Executioner 34381 | -2/Research | Spotted Striker 34382 | -2/Research | Destroyed Striker 34384 | -2/Research | Spotted Striker 34386 | -2/Research | Destroyed Striker 34393 | -2/Research | Spotted Striker 34396 | -2/Research | Destroyed Striker 34419 | -2/Research | Destroyed 7 combat bots 34453 | -2/Research | Spotted Striker 34453 | -2/Research | Destroyed Striker 34513 | -2/Research | Entered Access 34659 | -1/Access | Reached level 37 34659 | -1/Access | High security lockdown imminent 34679 | -1/Access | Destroyed 8 combat bots 34701 | -1/Access | Spotted B-99 Colossus 34737 | -1/Access | Destroyed B-99 Colossus 34739 | -1/Access | High security lockdown engaged 34763 | -1/Access | Destroyed 11 combat bots 34862 | -1/Access | Destroyed 10 combat bots 34908 | -1/Access | Destroyed 10 combat bots 34955 | -1/Access | Spotted B-99 Colossus 34962 | -1/Access | Destroyed B-99 Colossus 34991 | -1/Access | Destroyed 7 combat bots 35010 | -1/Access | Energy Cycler disabled 35043 | -1/Access | Garrison activated, responded to threat 35052 | -1/Access | Spotted B-99 Colossus 35099 | -1/Access | Destroyed 14 combat bots 35269 | -1/Access | Destroyed Investigator 35275 | -1/Access | Reached level 38 35301 | -1/Access | Destroyed 30 combat bots 35312 | -1/Access | Discovered new exit (range 5) 35319 | -1/Access | Spotted Striker 35319 | -1/Access | Spotted Striker 35328 | -1/Access | Destroyed Striker 35329 | -1/Access | Destroyed Striker 35342 | -1/Access | Identified exit to Surface 35404 | -1/Access | Sterilization system engaged 35449 | -1/Access | Spotted B-99 Colossus 35453 | -1/Access | Spotted B-99 Colossus 35454 | -1/Access | Destroyed B-99 Colossus 35457 | -1/Access | Destroyed B-99 Colossus 35478 | -1/Access | Destroyed 11 combat bots 35668 | -1/Access | Spotted B-99 Colossus 35668 | -1/Access | Spotted B-99 Colossus 35678 | -1/Access | Destroyed B-99 Colossus 35685 | -1/Access | Destroyed B-99 Colossus 35701 | -1/Access | Discovered new exit (range 3) 35701 | -1/Access | Identified exit to Command 35704 | -1/Access | Ambient heat levels rising (+10) 35711 | -1/Access | Entered Command 35783 | -1/Command | Upgraded with Utility slot (x1) 35937 | -1/Command | Disengaged cave seal 35952 | -1/Command | Disengaged cave seal 35957 | -1/Command | High security lockdown imminent 35990 | -1/Command | Phase Generator disabled 35997 | -1/Command | Welcomed Warlord to Command 36037 | -1/Command | High security lockdown engaged 36057 | -1/Command | Spotted B-99 Colossus 36062 | -1/Command | Destroyed B-99 Colossus 36068 | -1/Command | Spotted B-99 Colossus 36069 | -1/Command | Spotted Striker 36069 | -1/Command | Spotted Alpha 7 36069 | -1/Command | Spotted Striker 36069 | -1/Command | Spotted Executioner 36069 | -1/Command | Spotted Executioner 36073 | -1/Command | Destroyed Striker 36074 | -1/Command | Lost 3 allies 36075 | -1/Command | Destroyed Striker 36075 | -1/Command | Spotted Alpha 7 36082 | -1/Command | Destroyed Alpha 7 36084 | -1/Command | Spotted Executioner 36086 | -1/Command | Destroyed Alpha 7 36087 | -1/Command | Destroyed Executioner 36087 | -1/Command | Destroyed 4D-0Q8(K) 36088 | -1/Command | Destroyed Executioner 36089 | -1/Command | Destroyed Executioner 36093 | -1/Command | Core integrity fell below 50% 36117 | -1/Command | Destroyed B-99 Colossus 36126 | -1/Command | Spotted Executioner 36146 | -1/Command | Destroyed Executioner 36150 | -1/Command | Spotted B-99 Colossus 36157 | -1/Command | Destroyed B-99 Colossus 36171 | -1/Command | Found Exp. Core Analyzer 36178 | -1/Command | Destroyed 35 combat bots 36179 | -1/Command | Lost 13 allies 36196 | -1/Command | Spotted M Guard 36196 | -1/Command | Spotted M Guard 36196 | -1/Command | Spotted Combat Programmer 36198 | -1/Command | Spotted Combat Programmer 36214 | -1/Command | Destroyed Combat Programmer 36215 | -1/Command | Destroyed Combat Programmer 36232 | -1/Command | Spotted Investigator 36234 | -1/Command | Destroyed Investigator 36302 | -1/Command | All MAIN.C guards destroyed 36339 | -1/Command | Reached level 39 36362 | -1/Command | Destroyed 53 combat bots 36440 | -1/Command | Spotted Executioner 36440 | -1/Command | P-80 Master assimilated allied 3R-S59(g) 36442 | -1/Command | Spotted Striker 36442 | -1/Command | Spotted Striker 36444 | -1/Command | Spotted Striker 36452 | -1/Command | Destroyed Executioner 36456 | -1/Command | Destroyed Striker 36456 | -1/Command | Destroyed Striker 36481 | -1/Command | Core integrity fell below 20% 36534 | -1/Command | Destroyed 34 combat bots 36548 | -1/Command | Found Unknown Launcher 36548 | -1/Command | Identified Fusion Bomb Launcher 36778 | -1/Command | Spotted Striker 36780 | -1/Command | Spotted Striker 36797 | -1/Command | Destroyed Striker 36798 | -1/Command | Destroyed Striker 36882 | -1/Command | Destroyed 52 combat bots 36936 | *** | Escaped! Last Messages --------------- 36881_ Used Protomatter to restore part integrity (+44, depleted) 36891_ Used Protomatter to restore part integrity (+145) 36892_ W-44 Eye sends out distress signal. 36892_ W-44 Eye destroyed. 36894_ W-44 Eye suffers critical hit (Destroy). 36894_ W-44 Eye destroyed. 36895_ Acquired 56 matter. 36906_ R-10 Processor collects Unknown Leg. 36908_ R-10 Processor collects KE Penetrator. 36909_ S-43 Plague suffers critical hit (Destroy). 36909_ S-43 Plague destroyed. 36910_ R-10 Processor collects Adv. Targeting Computer. 36912_ Acquired 28 matter. 36922_ K-01 Serf collects debris. 36930_ Triggered Stasis Trap. 36930_ A bubble of rippling energy engulfs the area. 36930_ Field strength at 94. 36932_ Stasis field depleted. [Achievement: Punisher] Map ----- +----------------------------------------------------+ | #############%#####%%==*!!!!*[ %= =% %%[%%% | | ###?#########+###!=!#![=%%%%[[ %[* = %!%% % % | | ##??## *%######!%=%!*!= [ %==/ ]!= | | ###### %[!#######!=!!*=[!!!!=/ =!!"####### | | [[###### "" !##??###%=*=[/%=!%= ]* =###### | | ==* # """" ##???##%%[%!/*!!% % *=[##???# | | ![ [ + """"=!##???##%!=!!=#=####"##"#"#####???# | | *=### # ""*%=##??###% !=####### ####???# | | ! ### # / ##??###++%*####### ! ######## | | [ ### # ##?### %^^###?## ######## | | [*### # "" "##?### ^^###?## + | | [### + """""%##?## ^ ##?## !!= ######## | | *! ## # """" "##?### ###?## !== ######## | | #### # "" ##?## ^^ ^ ##?## != ##?????# | | [ ## # ##?### ^ ^ ###?## ! =##?????# | | !# # # ##?## ^ ^ ^ ##?## !%[ ##?????? | | # # # ##?###^ !!###?###### #####?????? | | ## ###+##+####### =^! ###############?????? | | ## ## #####= ^!######??#####????????? | | ### ## ] !!! ###%!]! != ###???????????????? | | ## # !!! ###%!* ;##???????????????? | | # ## # !! ###!! ^^^ ###???????????????? | | #### # ###! ###???????????????? | | #### # ### ^ ##????????????????? | | ### # ### "" ##????????????????? | | T" # ### "@ ##????????????????? | | "" + ### ##????????????????? | | ###### ### ##????????????????? | | ######### ### ^ ##????????????????? | | #####??## ### ##????????????????? | | ???????## ### ###???????????????? | | ???????## ###############;##???????????????? | | ???????## ##################???????????????? | | ???????## ##????????????####???????????????? | | ???????## ##???????????????????????????????? | | ???????###########???????????????????????????????? | | ???????###########???????????????????????????????? | | ?????????????????????????????????????????????????? | | ?????????????????????????????????????????????????? | | ?????????????????????????????????????????????????? | | ?????????????????????????????????????????????????? | | ?????????????????????????????????????????????????? | | ?????????????????????????????????????????????????? | | ?????????????????????????????????????????????????? | | ?????????????????????????????????????????????????? | | ?????????????????????????????????????????????????? | | ?????????????????????????????????????????????????? | | | | | | | +----------------------------------------------------+ Best States ------------- Heat Dissipation 175 Energy Generation 56 Energy Capacity 400 Matter Stores 500 Matter Capacity 500 Sight Range 20 Robot Scan Range 20 Terrain Scan Density 10 Jamming Range 16 EM Shielding 4 Corruption Containment 8 Corruption Block 20 Resistance: KI 10 Resistance: TH 10 Weapon Cycling 15 Phase Shifting 20 Evasion (%) 99 Targeting Accuracy 12 Target Analysis 10 Core Analysis 12 Armor Integrity Analysis 50 Matter Filtering 50 Particle Charging 25 Kinecelleration 50 Force Boost 30 Offensive Hacking 31 Defensive Hacking 40 Authchip Count 1 Item Schematics ----------------- Enh. Autogun | -7/Factory | Hacked Kinecellerator | -7/Factory | Hacked Force Field | -7/Zion | Archive Imp. Field Recycling Unit | -7/Zion | Archive Hvy. Shock Bomb Launcher | -7/Zion | Archive Imp. Deuterium Engine | -7/Zion | Archive EM Shield | -7/Zion | Archive Flak Gun | -7/Zion | Archive Imp. Trap Scanner | -7/Zion | Archive Gatling Laser | -7/Zion | Archive Power Amplifier | -7/Zion | Archive Core Analyzer | -7/Zion | Archive Variable Charge Gun | -7/Zion | Archive Cloaking Device | -7/Zion | Archive System Restoration Module | -7/Zion | Archive Armor Integrity Analyzer | -7/Zion | Archive Imp. Hardlight Generator | -7/Zion | Archive Machine Analyzer | -6/Factory | Hacked Combat Drone Bay | -6/Data Miner | Free Lgt. Regenerative Plating | -6/Data Miner | Free Cld. Gravmag System | -6/Data Miner | Free Prc. Energy Filter | -6/Data Miner | Free Enh. Coil Gun | -6/Data Miner | Free Centrium Wheel | -6/Data Miner | Free Quantum Capacitor | -6/Data Miner | Free Force Lance | -6/Data Miner | Free Imp. Thermal Shield | -6/Data Miner | Free Railgun | -6/Data Miner | Free Cld. Plasma Cannon | -5/Factory | Hacked Diametric Drive | -4/Factory | Hacked Adv. Corruption Screen | -4/Factory | Hacked Adv. Particle Charger | -4/Factory | Hacked Prc. Matter Filter | -3/Testing | Archive Med. Regenerative Plating | -3/Testing | Hacked Adv. Remote Shield | -3/Testing | Archive Enh. Armored Medium Treads | -3/Testing | Archive Centrium Light Armor Plating | -3/Testing | Archive Imp. Lightning Gun | -3/Testing | Archive Adv. KE Penetrator | -3/Testing | Archive Exp. Heat Sink | -3/Testing | Archive Exp. Coolant Injector | -3/Testing | Archive Cld. Antigrav System | -3/Testing | Archive Shock Maul | -3/Testing | Archive Robot Schematics ------------------ D-53 Grenadier | -7/Zion | Archive S-27 Virus | -7/Zion | Archive K-01 Serf | -7/Zion | Archive A-15 Conveyor | -6/Data Miner | Free R-10 Processor | -6/Data Miner | Free G-50 Soldier | -6/Data Miner | Free B-60 Warrior | -6/Data Miner | Free H-66 Slayer | -6/Data Miner | Free T-07 Excavator | -5/Factory | Archive A-02 Transporter | -5/Factory | Archive R-06 Scavenger | -5/Factory | Archive M-14 Sweeper | -5/Factory | Archive M-22 Extractor | -5/Factory | Archive M-30 Cleanser | -5/Factory | Archive M-13 Machinist | -5/Factory | Archive M-28 Smith | -5/Factory | Archive M-36 Artificer | -5/Factory | Archive O-16 Technician | -5/Factory | Archive O-24 Administrator | -5/Factory | Archive O-32 Director | -5/Factory | Archive W-16 Scout | -5/Factory | Archive W-25 Informer | -5/Factory | Archive W-44 Eye | -5/Factory | Archive S-10 Pest | -5/Factory | Archive S-43 Plague | -5/Factory | Archive G-34 Mercenary | -5/Factory | Archive G-47 Trooper | -5/Factory | Archive G-67 Veteran | -5/Factory | Archive G-73 Enforcer | -5/Factory | Archive B-36 Bruiser | -5/Factory | Archive B-48 Gladiator | -5/Factory | Archive B-74 Champion | -5/Factory | Archive L-31 Rogue | -5/Factory | Archive L-41 Fighter | -5/Factory | Archive L-61 Swordsman | -5/Factory | Archive Y-45 Defender | -5/Factory | Archive Y-54 Guardian | -5/Factory | Archive Y-64 Sentinel | -5/Factory | Archive Y-72 Warden | -5/Factory | Archive D-63 Destroyer | -5/Factory | Archive D-83 Annihilator | -5/Factory | Archive X-57 Shotgunner | -5/Factory | Archive X-62 Marksman | -5/Factory | Archive X-67 Chaingunner | -5/Factory | Archive X-72 Disruptor | -5/Factory | Archive X-77 Beamer | -5/Factory | Archive X-82 Rainmaker | -5/Factory | Archive X-87 Electro | -5/Factory | Archive H-55 Commando | -5/Factory | Archive H-77 Assassin | -5/Factory | Archive H-88 Terminator | -5/Factory | Archive P-60 Hacker | -5/Factory | Archive P-70 Sage | -5/Factory | Archive P-80 Master | -5/Factory | Archive A-27 Freighter | -3/Testing | Archive Fabricated ------------ Enh. Autogun | x1 | -7/Factory Kinecellerator | x2 | -7/Factory M-36 Artificer | x1 | -5/Factory Cld. Plasma Cannon | x1 | -5/Factory Diametric Drive | x1 | -4/Factory Graphene Brace | x2 | -4/Factory | Preloaded Diametric Drive | x1 | -4/Factory | Authchip Diametric Drive | x1 | -4/Factory Diametric Drive | x1 | -4/Factory Diametric Drive | x1 | -4/Factory Cld. Plasma Cannon | x1 | -4/Factory Adv. Particle Charger | x2 | -4/Factory Enh. Autogun | x1 | -3/Research Enh. Autogun | x1 | -3/Testing Enh. Autogun | x1 | -2/Research Repaired ---------- Nothing Studied --------- Lgt. Assault Rifle | -9/Materials | Hacked Flight Unit | -9/Materials | Hacked Cesium-ion Thruster | -8/Materials | Hacked Autogun | -8/Materials | Hacked Lgt. Ion Engine | -7/Factory | Hacked Mic. Nuclear Core | -5/Factory | Hacked Mic. Fission Core | -4/Factory | Hacked Alien Tech Used ----------------- Dimensional Node Initializer Achievements -------------- Below Bending The Rules Collateral Damage Corridor Of Doom Deadly Precision Executioner Gunslinger Hackathon King Drone Network Effect Not Today, Chutes Official Business Protector Punisher Reappropriation Scorched Earth Showdown We Love MA Challenges ------------ None RPGLIKE | -11 -10 -9 -8 -7 -7 -7 -7 -6 -6 -6 -6 -6 -6 -6 -5 -5 -5 -5 -5 -5 -5 -4 -4 -4 -4 -4 -3 -3 -2 -1 -1 --------- Run | Yrd Mat Mat Mat Fac Low Low Zio Pro Fac Was Fac Low Low Dat Pro Fac Was Fac Upp Upp War Pro Fac Was Fac Arm Res Tes Res Acc Com Levels Raised 38 | . 2 6 4 5 1 . . 1 . . 2 . . . 1 2 . 1 . . 1 . 1 . 1 1 2 1 3 2 1 XP Earned 60441 | 3000 3110 9480 5750 8473 308 142 84 1268 529 46 3392 105 183 73 1019 2088 22 2052 81 196 1571 286 1104 22 1148 1208 2913 1413 5223 2446 1706 XP Spent 59525 | 3000 3000 8995 4490 7415 . . 2000 2300 . . 1100 . . . . 5100 . 2900 . . 1600 . 1200 . . 3100 3025 1000 4870 . 4430 Upgrades 95 | 7 8 14 7 24 . . 1 1 . . 1 . . . . 4 . 1 . . 2 . 4 . . 2 7 1 7 . 4 Power Slot 1 | . . . . . . . . . . . . . . . . . . . . . 1 . . . . . . . . . . Propulsion Slot 3 | 1 . 1 . . . . . . . . 1 . . . . . . . . . . . . . . . . . . . . Utility Slot 10 | 1 . 2 1 1 . . 1 1 . . . . . . . 1 . 1 . . . . . . . . . . . . 1 Weapon Slot 6 | 2 1 2 . . . . . . . . . . . . . . . . . . . . . . . 1 . . . . . Heat Dissipation 25 | . . 2 1 8 . . . . . . . . . . . . . . . . . . 4 . . . 5 . 4 . 1 Energy Generation 4 | . . . . 2 . . . . . . . . . . . . . . . . . . . . . . 1 . 1 . . Matter Storage 4 | . . . . 3 . . . . . . . . . . . . . . . . . . . . . . 1 . . . . Mass Support 3 | 1 . 1 . . . . . . . . . . . . . . . . . . 1 . . . . . . . . . . Inventory Capacity 4 | . 1 1 . 1 . . . . . . . . . . . . . . . . . . . . . . . 1 . . . Sight Range 2 | . 1 1 . . . . . . . . . . . . . . . . . . . . . . . . . . . . . Sensor Range 10 | . 1 1 . 8 . . . . . . . . . . . . . . . . . . . . . . . . . . . Ranged Accuracy 8 | 1 2 1 3 . . . . . . . . . . . . . . . . . . . . . . 1 . . . . . Hack Attack % 3 | . 1 1 . . . . . . . . . . . . . 1 . . . . . . . . . . . . . . . Hack Defense % 4 | . 1 1 . . . . . . . . . . . . . 2 . . . . . . . . . . . . . . . KI Resistance % 2 | . . . 1 . . . . . . . . . . . . . . . . . . . . . . . . . . . 1 TH Resistance % 2 | . . . 1 . . . . . . . . . . . . . . . . . . . . . . . . . . . 1 KI Damage % 4 | 1 . . . 1 . . . . . . . . . . . . . . . . . . . . . . . . 2 . . Protomatter Created 49397 | . 93 646 1002 2418 278 48 . 427 72 . 2637 53 48 . 327 1117 169 2479 149 577 5400 357 1406 416 2421 2410 3628 3665 10514 2718 3922 Integrity Restored 36242 | . 138 729 2181 2381 253 . 24 389 57 33 2909 28 66 . 247 683 74 2494 24 484 3122 35 544 . 810 1778 2288 1877 7181 1962 3451 Core 28328 | . 138 607 1714 1842 195 . 18 307 47 26 2227 21 51 . 194 550 74 1875 17 397 2426 28 441 . 637 1411 1825 1327 5592 1570 2771 Parts 7914 | . . 122 467 539 58 . 6 82 10 7 682 7 15 . 53 133 . 619 7 87 696 7 103 . 173 367 463 550 1589 392 680 Protomatter Decayed 29160 | . 34 335 93 1095 88 . 35 201 49 90 1274 43 24 . 236 690 86 1362 66 298 2705 124 834 166 1983 898 1694 1465 9305 1735 2152 Game ------ Seed RestorationShockMapper Manual? 0 Play Time 16:37:24 Cumulative 134.3 hours Start 2025.11.02 @ 23:34:38 End 2025.11.05 @ 04:10:38 Sessions 7 Manual Loads 0 Difficulty Rogue Special Mode Winter2019/RPGLIKE Game No. 49 Rogue 49 Adventurer 0 Explorer 0 Win Type 0 Total 5 Types 2/0/1/2/0/0/0/0/0/0 Lore% 49 Gallery% 46 Achievement% 45 Wizard Run 0 Options --------- Layout 2 ASCII 0 Keyboard 0 Movement Mouse Keybinds 1 Fullscreen 2 Font 20/X11 Map View 64x51 Zoom Use 0% Tactical HUD 1 Map Filters NONE Filters NONE Steam 1 RUN: 97a46a4d-5db0-468c-b0ae-e53fca97fa4b